Cogmind - Beta 10.2 @@@ ROGUE MODE // 2021.03.07 @ 19:11:18 // Winter2019/RPGLIKE Player: Yanriel Result: Escaped! Performance ------------- Evolutions (9) 4500 Regions Visited (31) 6200 Robots Destroyed (1117) 5585 Value Destroyed (56437) 56437 Prototype IDs (105) 2100 Alien Tech Used (4) 800 Bonus (60746) 60746 TOTAL SCORE: 136368 Bonus ------- Triggered High Security 2000 Triggered Max Security 1000 High Alert Combat Kills 32815 Follower Combat Kills 1614 Aligned with FarCom 300 Met Data Miner 300 Met Imprinter 300 Met Zhirov 300 Met Warlord at Base 500 MAIN.C Attacked Warlord 500 Warlord Defense Kill 1172 Met Warlord at Research 2000 Invited to Help at Command 2000 Scanned by Researcher 500 Acquired SGEMP 2000 Delivered SGEMP 2000 Destroyed MAIN.C Guards 500 Met MAIN.C 5000 Destroyed MAIN.C Shell 5000 Zhirov Destroyed MAIN.C 3000 Win 3000 Friendly Fire -5055 Cogmind --------- Core Integrity 1400/1400 Matter 600/600 Energy 99/100 System Corruption 0% Temperature Cool (0) Movement Core (50) Location To Epsilon Eridani Parts ------- > --- POWER (4) -------- (None) > --- PROPULSION (5) --- (None) > --- UTILITY (11) ----- (None) > --- WEAPON (6) ------- (None) > --- INVENTORY (4) ---- (None) Peak State ------------ > --- POWER ------------ F-cell Engine F-cell Engine Vortex Chain Reactor > --- PROPULSION ------- Armored Huge Wheel Armored Huge Wheel High-density Centrium Wheel > --- UTILITY ---------- Advanced Cryofiber Web Experimental Targeting Computer Advanced Target Analyzer Experimental Core Analyzer Improved Armor Integrity Analyzer SHELL Armor Thermal Barrier EM Disruption Field AEGIS Remote Shield > --- WEAPON ----------- High-powered Disruptor Cannon Improved Matter Neutralizer Improved Matter Neutralizer Improved Matter Neutralizer Z-bomb Delivery System > --- INVENTORY -------- Vortex Rifle Vortex Rifle SGEMP Prototype [Rating: 220] Favorites ----------- Power F-cell Engine Engine F-cell Engine Power Core Fission Core Reactor Vortex Chain Reactor Propulsion Armored Huge Wheel Treads Advanced Heavy Siege Treads Leg Enhanced Biometal Leg Wheel Armored Huge Wheel Hover Unit Backup Propulsion I Flight Unit Cooled Impulse Thruster Utility Armor Integrity Analyzer Device Advanced Cryofiber Web Storage Advanced Matter Compressor Processor Armor Integrity Analyzer Hackware Hacking Suite Protection Damper Plating Weapon Neutron Cannon Energy Gun Tesla Rifle Energy Cannon Neutron Cannon Ballistic Gun Assault Rifle Ballistic Cannon AWS/Autocannon Launcher Smartbomb Launcher Special Weapon Improved Remote Datajack Piercing Weapon Vortex Lance Special Melee Weapon Datajack Build | -11 -10 -10 -10 -9 -8 -7 -7 -7 -7 -7 -6 -6 -6 -6 -6 -5 -5 -5 -5 -5 -4 -4 -4 -4 -4 -3 -3 -3 -2 -1 -1 ------- Run | Scr Mat Min Exi Min Mat Fac Was Fac Low Zio Pro Fac Low Low Dat Pro Fac Upp Upp War Pro Fac Upp Upp Zhi Pro Res Tes Res Acc Com Slots Evolved 21 | 3 5 . . 1 4 . . 2 . . . . . . . . 2 . . . 1 . 1 . . . 1 1 . . . Power 2 | . 1 . . . . . . 1 . . . . . . . . . . . . . . . . . . . . . . . Propulsion 4 | 1 1 . . . 1 . . . . . . . . . . . . . . . . . . . . . 1 . . . . Utility 10 | 1 2 . . . 2 . . 1 . . . . . . . . 1 . . . 1 . 1 . . . . 1 . . . Weapon 5 | 1 1 . . 1 1 . . . . . . . . . . . 1 . . . . . . . . . . . . . . Parts Attached 368 | 5 17 . 5 2 24 5 6 26 . 3 5 17 8 10 . 2 18 3 4 19 6 18 2 6 10 2 22 36 14 1 72 Power 28 | 1 1 . . . 5 2 . 4 . 1 . . . 2 . . 2 . . 1 . . . . 2 . 1 2 . . 4 Engine 14 | 1 1 . . . 3 . . 4 . . . . . . . . 2 . . . . . . . 1 . 1 1 . . . Core 6 | . . . . . 2 2 . . . 1 . . . 1 . . . . . . . . . . . . . . . . . Reactor 8 | . . . . . . . . . . . . . . 1 . . . . . 1 . . . . 1 . . 1 . . 4 Propulsion 44 | 2 4 . . . 3 . . . . . . . . . . . . . . 3 . 2 . . 2 . 3 3 1 1 20 Treads 13 | . . . . . . . . . . . . . . . . . . . . . . 1 . . . . 2 . . . 10 Leg 6 | . . . . . . . . . . . . . . . . . . . . 1 . . . . 1 . 1 . . . 3 Wheel 22 | 2 4 . . . 3 . . . . . . . . . . . . . . 1 . 1 . . 1 . . 2 1 1 6 Hover 2 | . . . . . . . . . . . . . . . . . . . . 1 . . . . . . . 1 . . . Flight 1 | . . . . . . . . . . . . . . . . . . . . . . . . . . . . . . . 1 Utility 137 | . 6 . . 1 8 . 1 9 . . 1 5 8 8 . 2 4 1 4 9 5 5 2 4 4 . 9 17 5 . 19 Device 67 | . . . . . 1 . . 6 . . . 1 4 4 . 1 1 . 2 4 2 2 1 . 1 . 5 13 3 . 16 Storage 2 | . 1 . . . . . . . . . . . . . . . . . . . . . . . . . 1 . . . . Processor 23 | . 5 . . 1 3 . . 1 . . 1 1 . . . . 2 . . 1 1 . 1 1 . . 2 . 1 . 2 Hackware 6 | . . . . . 4 . . 1 . . . . . . . . . . . . . . . . . . . . . . 1 Protection 39 | . . . . . . . 1 1 . . . 3 4 4 . 1 1 1 2 4 2 3 . 3 3 . 1 4 1 . . Artifact . | . . . . . . . . . . . . . . . . . . . . . . . . . . . . . . . . Weapon 159 | 2 6 . 5 1 8 3 5 13 . 2 4 12 . . . . 12 2 . 6 1 11 . 2 2 2 9 14 8 . 29 Energy Gun 37 | . 5 . . . 1 . 5 1 . . . . . . . . . . . 2 . . . . 1 . . 1 5 . 16 Energy Cannon 72 | . . . 2 . 5 3 . 10 . 1 2 6 . . . . 9 1 . 1 1 8 . 1 1 1 7 9 1 . 3 Ballistic Gun 7 | 2 . . . . . . . . . . . . . . . . . . . . . . . . . . . . . . 5 Ballistic Cannon 4 | . . . 3 . . . . . . . . . . . . . . . . . . . . . . . . . . . 1 Launcher 22 | . . . . 1 2 . . 2 . . 1 6 . . . . 3 . . . . . . . . . 1 3 . . 3 Special Weapon 12 | . . . . . . . . . . . 1 . . . . . . 1 . 1 . 3 . 1 . 1 1 1 1 . 1 Impact Weapon . | . . . . . . . . . . . . . . . . . . . . . . . . . . . . . . . . Slashing Weapon . | . . . . . . . . . . . . . . . . . . . . . . . . . . . . . . . . Piercing Weapon 4 | . . . . . . . . . . 1 . . . . . . . . . 2 . . . . . . . . 1 . . Special Melee Weapon 1 | . 1 . . . . . . . . . . . . . . . . . . . . . . . . . . . . . . Unidentified Prototypes 60 | . . . . . 1 . . . . . . 2 1 . . . 3 1 . 9 . 1 . 1 5 . 5 14 3 . 14 Parts Lost 2 | . . . . . . . . . . . . . . . . . . . . . . . . . . . . 2 . . . Power . | . . . . . . . . . . . . . . . . . . . . . . . . . . . . . . . . Propulsion . | . . . . . . . . . . . . . . . . . . . . . . . . . . . . . . . . Utility 1 | . . . . . . . . . . . . . . . . . . . . . . . . . . . . 1 . . . Weapon 1 | . . . . . . . . . . . . . . . . . . . . . . . . . . . . 1 . . . Highest Loss Streak 1 | . . . . . . . . . . . . . . . . . . . . . . . . . . . . 1 . . . Average Slot Usage (%) 78 | . 99 100 86 83 90 87 82 76 78 77 78 77 72 73 73 73 74 74 72 71 72 72 74 74 74 75 78 80 78 81 81 Engine 9 | . 11 16 16 15 5 5 5 11 15 14 10 10 10 10 10 10 12 13 13 11 8 8 8 8 7 8 8 7 7 7 4 Core 1 | . . . . . 5 5 5 2 . . 5 5 5 5 5 5 2 . . . . . . . . . . . . . . Reactor 1 | . . . . . . . . . . . . . . . . . . . . 1 4 4 4 4 4 4 4 3 3 3 4 Wheel 11 | . 29 25 25 23 14 11 11 10 10 10 10 10 10 10 10 10 9 9 9 8 8 8 8 8 7 8 8 8 11 12 11 Device 8 | . . . . . 2 5 5 5 5 5 5 5 5 5 5 5 4 4 4 6 8 8 7 8 8 8 13 19 14 15 19 Processor 14 | . 34 33 33 31 16 17 14 8 10 10 13 10 10 10 10 10 13 13 13 11 12 13 15 16 16 16 16 15 15 15 14 Hackware 1 | . . . . . 15 11 5 . . . . . . . . . . . . . . . . . . . . . . . . Protection 5 | . . . . . . . 2 7 10 10 6 9 9 9 10 9 9 8 9 8 7 7 8 7 7 8 4 1 3 3 . Energy Gun 3 | . 21 25 5 . . . 13 3 . . . . . . . . . . . 2 8 . . . . . . . 5 7 11 Energy Cannon 14 | . . . . . 17 22 12 23 26 25 25 23 15 15 15 15 16 18 18 14 8 16 16 15 16 15 15 16 11 11 7 Launcher 2 | . . . . 3 5 5 1 . . . . 1 5 5 5 5 4 4 4 4 4 4 4 4 4 4 3 3 3 3 . Naked Turns 25 | . . . . . . . . . . . . . . . . . . . . . . . . . . . . . . . 25 Heaviest Build 187 | 8 15 15 70 74 76 48 90 127 127 127 127 137 129 129 129 129 143 143 143 171 173 187 187 187 187 187 187 185 183 175 175 Greatest Support 190 | 25 35 35 35 35 61 61 61 61 61 61 61 61 61 61 61 61 61 61 61 61 61 61 61 61 61 61 61 81 81 79 190 Greatest Overweight (x) 17 | . . . 1 2 2 . 1 2 2 2 2 2 2 2 2 2 2 2 2 4 2 5 3 3 5 3 3 3 2 2 17 Average Overweight (x) 1 | . . . . 1 . . . 1 2 1 1 1 1 1 2 1 1 2 2 2 2 2 3 2 2 2 2 2 2 2 2 Largest Inventory Capacity 4 | 1 1 1 1 1 1 3 3 3 3 3 3 3 3 3 3 3 3 3 3 3 3 3 3 3 3 3 3 4 4 4 4 Average Capacity 2 | 1 1 1 1 1 1 1 3 3 3 3 3 3 3 3 3 3 3 3 3 3 3 3 3 3 3 3 3 3 4 4 4 Most Carried 4 | . 1 1 1 1 1 2 3 3 2 3 3 3 3 3 3 3 3 3 3 3 3 3 3 3 3 3 3 4 4 3 4 Average Carried 2 | . . . 1 1 1 1 2 2 2 2 3 2 2 2 3 1 2 2 2 2 2 2 3 2 2 2 3 3 4 2 3 Final Capacity 4 | 1 1 1 1 1 1 3 3 3 3 3 3 3 3 3 3 3 3 3 3 3 3 3 3 3 3 3 3 4 4 4 4 Final Carried 4 | . 1 1 1 1 1 2 3 2 2 3 3 3 3 3 3 2 3 3 3 3 3 3 3 3 3 3 3 4 4 3 . Class Distribution -------------------- 21% | Hacker-Gunner 15% | Machinist-Gunner 14% | Generator-Mutant 14% | Generator-Gunner 8% | Hacker-Mutant 5% | Machinist-Mutant 5% | Generator-Executioner 4% | Mutant 4% | Gunner Dominant Class ---------------- Mutant | -10/Materials Gunner | -10/Mines Gunner | -10/Exiles Gunner | -9/Mines Hacker-Gunner | -8/Materials Hacker-Gunner | -7/Factory Hacker-Gunner | -7/Waste Hacker-Gunner | -7/Factory Machinist-Gunner | -7/Lower Caves Machinist-Gunner | -7/Zion Machinist-Gunner | -6/Proximity Caves Machinist-Gunner | -6/Factory Hacker-Gunner | -6/Lower Caves Hacker-Gunner | -6/Lower Caves Hacker-Gunner | -6/Data Miner Hacker-Gunner | -5/Proximity Caves Machinist-Gunner | -5/Factory Machinist-Gunner | -5/Upper Caves Machinist-Gunner | -5/Upper Caves Machinist-Mutant | -5/Warlord Generator-Mutant | -4/Proximity Caves Generator-Gunner | -4/Factory Generator-Gunner | -4/Upper Caves Generator-Gunner | -4/Upper Caves Generator-Mutant | -4/Zhirov Generator-Mutant | -3/Proximity Caves Generator-Gunner | -3/Research Generator-Gunner | -3/Testing Generator-Executioner | -2/Research Generator-Mutant | -1/Access Hacker-Mutant | -1/Command Resources | -11 -10 -10 -10 -9 -8 -7 -7 -7 -7 -7 -6 -6 -6 -6 -6 -5 -5 -5 -5 -5 -4 -4 -4 -4 -4 -3 -3 -3 -2 -1 -1 ----------- Run | Scr Mat Min Exi Min Mat Fac Was Fac Low Zio Pro Fac Low Low Dat Pro Fac Upp Upp War Pro Fac Upp Upp Zhi Pro Res Tes Res Acc Com Matter Collected 14370 | 247 215 . . 92 479 60 60 300 . 30 89 560 430 1821 . 834 869 214 130 296 152 775 190 235 100 296 721 1272 1797 119 1987 Remotely . | . . . . . . . . . . . . . . . . . . . . . . . . . . . . . . . . Salvage Created 42267 | . 2102 406 . 119 1725 691 422 2870 72 . 776 2945 1 1700 . 870 2657 678 835 430 1233 3370 603 643 244 600 2685 3924 1885 844 6937 Parts 1776 | . 137 25 . 7 124 21 1 106 . . 25 160 4 53 . 28 137 31 19 11 31 158 14 21 . 11 130 134 69 49 270 Haulers Intercepted 20 | . 2 . . . 5 1 . 1 . . . 1 . . . . 2 . . . . 4 . . . . 4 . . . . Recyclers Shooed 12 | . . . . . . . . . . . . 1 . . . . 3 . . . . 1 . . . . 5 . . . 2 Parts Field Recycled 34 | . . . . . . . . . . . . . . . . . . . . . 34 . . . . . . . . . . Retrieved Matter 220 | . . . . . . . . . . . . . . . . . . . . . 220 . . . . . . . . . . Parts Self-Destructed 260 | . . . . . . . . . 5 7 27 . . 23 . 16 . 18 10 83 29 . 13 18 . 11 . . . . . Prevented 59 | . . . . . . . . . . . 3 . . 31 . 17 . . 2 5 1 . . . . . . . . . . Kills | -11 -10 -10 -10 -9 -8 -7 -7 -7 -7 -7 -6 -6 -6 -6 -6 -5 -5 -5 -5 -5 -4 -4 -4 -4 -4 -3 -3 -3 -2 -1 -1 ------- Run | Scr Mat Min Exi Min Mat Fac Was Fac Low Zio Pro Fac Low Low Dat Pro Fac Upp Upp War Pro Fac Upp Upp Zhi Pro Res Tes Res Acc Com Combat Hostiles Destroyed 867 | . 22 . . 19 46 10 1 49 . . 16 54 2 31 . 12 79 21 11 8 22 81 6 22 . 15 46 144 82 23 45 Guns 60 | . 18 . . . . . 1 7 . . . . . . . . . . . . 1 . . . . . . . 18 6 9 Cannons 461 | . . . . 17 31 9 . 35 . . 13 35 2 10 . 7 40 8 7 3 10 50 5 8 . 8 37 54 29 17 26 AOE 322 | . 4 . . 2 15 1 . 3 . . 3 11 . 16 . 4 39 13 4 5 11 31 1 14 . 7 8 87 33 . 10 Classes Destroyed 31 | . 10 . . 3 2 2 1 1 . . . 3 1 . . . . 2 . 3 . . . . . . . 2 . 1 . Worker 75 | . 22 2 . . 6 . . 6 . . . 6 . . . . 6 . . . . 6 . . . . 14 . . . 7 Builder 55 | . 12 1 . 1 2 . . 3 . . . 13 . . . . 3 . . . . 16 . . . . 3 . . 1 . Tunneler 9 | . 2 4 . . 1 . . . . . . . . . . . . . . . . 1 . . . . 1 . . . . Hauler 20 | . 2 . . . 5 1 . 1 . . . 1 . . . . 2 . . . . 4 . . . . 4 . . . . Recycler 20 | . 4 3 . . 1 . . 3 . . . 2 . . . . . . . . . 1 . . . . 5 . . . 1 Carrier 1 | . . . . . . . . 1 . . . . . . . . . . . . . . . . . . . . . . . Mechanic 15 | . 1 . . . 2 . . . . . . . . . . . 2 . . . . 1 . . . . . 6 1 1 1 Operator 9 | . 2 . . . 1 . . . . . . . . . . . 2 . . . . 2 . . . . 1 . . . 1 Watcher 41 | . 3 . . . 5 1 . 4 . . . 5 . . . . 5 . . . . 7 . . . . 9 . . . 2 Swarmer 98 | . 9 . . 6 4 . . 3 . . 2 3 . 9 . 1 9 7 3 . 10 9 . 11 . 5 . 2 . 5 . Saboteur 24 | . . . . . . . . . . . . 1 . . . . 3 . . . . 3 . . . . 2 7 5 . 3 Grunt 346 | . 13 . . . 28 7 . 18 . . 8 34 . 11 . 6 29 8 5 3 4 34 4 4 . 3 16 66 21 8 16 Brawler 55 | . . . . . 1 . . 3 . . 2 2 . 6 . . 2 1 . 1 . 5 . 2 . 1 3 12 5 3 6 Duelist 41 | . . . . . . 1 . 3 . . 1 2 . 2 . . 5 1 . . . 6 . 1 . . . 7 6 1 5 Protector 22 | . . . . . . . . . . . . 1 . . . . 2 . . 1 . 1 . . . . . 12 4 . 1 Sentry 61 | . . . . 2 10 . . 9 . . 2 4 . 2 . . 5 1 . . 1 4 . 2 . 1 2 7 7 . 2 Demolisher 3 | . . . . 2 . . . . . . . . . . . . . . . . . . . . . . . . 1 . . Specialist 1 | . . . . . . . . . . . . . . . . . . . . 1 . . . . . . . . . . . Hunter 63 | . . . . . 3 . . 5 . . . 1 . 1 . 3 10 2 . . 2 6 . . . 3 6 11 8 . 2 Programmer 100 | . . . . . . 2 . 8 . . 1 5 . . . 2 14 . 2 . . 13 2 2 . 1 17 11 14 1 5 Q-Series 5 | . . . . . . . . . . . . . . . . . . . . . . . . . . . . . . 5 . Behemoth 2 | . . . . . . . . . . . . 1 . . . . . . . . . . . . . 1 . . . . . Compactor 1 | . . . . . . . 1 . . . . . . . . . . . . . . . . . . . . . . . . M Guard 2 | . . . . . . . . . . . . . . . . . . . . . . . . . . . . . . . 2 Combat Programmer 2 | . . . . . . . . . . . . . . . . . . . . . . . . . . . . . . . 2 Investigator 2 | . . . . . . . . . . . . . . . . . . . . . . . . . . . . 1 1 . . Striker 14 | . . . . . . . . . . . . . . . . . . . . 1 . . . . . . . 5 8 . . Executioner 5 | . . . . . . . . . . . . . . . . . . . . 1 . . . . . . . 2 2 . . Alpha 7 1 | . . . . . . . . . . . . . . . . . . . . . . . . . . . . 1 . . . Protovariant Y 1 | . . . . . . . . . . . . . . . . . . . . . . . . . . . . 1 . . . Packrat 1 | . . . . . . . . . 1 . . . . . . . . . . . . . . . . . . . . . . Samaritan 2 | . . . . . . . . . . . . . . . . . . 2 . . . . . . . . . . . . . Thief 2 | . . . . . . . . . . . . . 2 . . . . . . . . . . . . . . . . . . Assembled 9 | . . . . 9 . . . . . . . . . . . . . . . . . . . . . . . . . . . Surgeon 2 | . . . . . . . . 2 . . . . . . . . . . . . . . . . . . . . . . . Wasp 8 | . . . . . . . . . . . . . . . . . . . . . . . . . . . . . 2 6 . Thug 4 | . . . . . . . . . . . . . . . . . . . . . 4 . . . . . . . . . . Butcher 2 | . . . . . . . . . . . . . . . . . . . . . 2 . . . . . . . . . . Mutant 4 | . . . . . . . . . . . . . . . . . . 1 1 . 1 . . . . . . . 1 . . Best Kill Streak 40 | . 7 3 . 9 13 4 1 9 . . 7 17 2 12 . 5 18 6 3 5 7 9 4 5 . 5 16 40 16 14 15 Combat Bots Only 39 | . 3 . . 9 7 4 1 8 . . 7 5 2 12 . 5 18 6 3 5 7 9 4 5 . 5 7 39 16 12 15 Max Kills in Single Turn 7 | . 2 1 . 2 4 1 1 2 1 . 3 7 1 2 . 2 4 3 2 2 5 6 1 3 . 2 4 6 7 4 3 Gunslinging . | . . . . . . . . . . . . . . . . . . . . . . . . . . . . . . . . Exploded 6 | . 1 . . 1 4 1 . 1 . . 2 2 . 2 . 2 4 3 2 2 5 4 1 3 . 2 2 6 6 . 3 Melee . | . . . . . . . . . . . . . . . . . . . . . . . . . . . . . . . . Uniques/NPCs Destroyed 2 | . . . . . . . . . . . . . . . . . 1 . . . . . . . . . . . . . 1 Warbot (-5/Factory) MAIN.C Shell (-1/Command) Combat | -11 -10 -10 -10 -9 -8 -7 -7 -7 -7 -7 -6 -6 -6 -6 -6 -5 -5 -5 -5 -5 -4 -4 -4 -4 -4 -3 -3 -3 -2 -1 -1 -------- Run | Scr Mat Min Exi Min Mat Fac Was Fac Low Zio Pro Fac Low Low Dat Pro Fac Upp Upp War Pro Fac Upp Upp Zhi Pro Res Tes Res Acc Com Damage Taken 23245 | . 568 . . 324 629 253 8 1708 . . 172 931 24 447 . 329 2277 425 92 221 505 1133 1 285 . 716 1098 2838 3649 735 3877 Core 14637 | . 458 . . 268 524 201 6 888 . . 100 519 13 197 . 162 1255 232 39 142 308 683 . 176 . 399 662 2145 2354 489 2417 Absorbed by Shields 9942 | . . . . . . . . . . . . . . . . . . . . 49 . . . . . . . 2471 3504 681 3237 Redirected to Core 13082 | . 338 . . 175 365 184 6 859 . . 82 485 13 197 . 154 1213 206 39 130 243 641 . 129 . 356 613 1931 2064 461 2198 Core Remaining (%) 85 | 100 . . . 55 100 . . . . . 100 . . . . 100 . . . . 95 . . . . 79 . 100 29 . 100 Volleys Fired 1864 | . 199 20 . 8 137 28 5 96 3 . 26 80 2 58 . 34 131 37 45 15 57 161 13 25 12 44 122 133 89 61 223 Largest 6 | . 2 3 . 1 5 5 5 5 1 . 5 5 3 3 . 3 4 4 4 2 4 4 4 4 1 4 4 4 5 5 6 Hottest 614 | . 80 110 . 33 301 316 391 450 90 . 450 450 270 270 . 270 360 360 360 180 260 440 440 440 110 440 459 459 527 527 614 Shots Fired 4829 | . 396 58 . 45 361 73 21 397 3 . 79 254 6 88 . 68 329 64 66 20 83 372 28 55 12 92 288 325 343 160 743 Gun 1137 | . 396 58 . . 1 . 11 41 . . . . . . . . . . . . 6 . . . . . . . 112 47 465 Cannon 3287 | . . . . 37 341 71 10 348 3 . 72 216 6 46 . 51 284 51 61 10 70 317 27 43 12 75 267 272 218 112 267 Launcher 375 | . . . . 8 19 2 . 8 . . 4 38 . 42 . 17 45 8 5 4 7 46 1 9 . 16 19 52 13 1 11 Special 30 | . . . . . . . . . . . 3 . . . . . . 5 . 6 . 9 . 3 . 1 2 1 . . . Kinetic 94 | . 14 . . 37 43 . . . . . . . . . . . . . . . . . . . . . . . . . . Thermal 3474 | . . 18 . . 214 71 21 389 3 . 72 216 6 46 . 51 284 51 61 10 70 317 27 43 12 76 269 272 328 159 388 Explosive 248 | . . . . 8 13 . . . . . . . . . . . 35 8 5 4 7 46 1 9 . 16 19 52 13 1 11 Electromagnetic 938 | . 382 40 . . 91 2 . 8 . . 4 38 . 42 . 17 10 . . . . . . . . . . . 2 . 302 Entropic 48 | . . . . . . . . . . . . . . . . . . . . . 6 . . . . . . . . . 42 Robot Hit Streak 157 | . 19 24 . 40 50 41 32 157 9 . 25 88 6 44 . 76 104 109 37 13 41 40 23 40 15 73 30 51 61 25 53 Robot Miss Streak 4 | . 3 1 . 1 1 1 1 1 1 . 1 1 . . . 1 1 2 1 1 1 1 . 1 . 1 2 4 1 1 2 Penetration Max . | . . . . . . . . . . . . . . . . . . . . . . . . . . . . . . . . Secondary Targets 4 | . 4 . . . . . . . . . . . . . . . . . . . . . . . . . . . . . . Max Gunslinging Chain 1 | . 1 . . . . . . . . . . . . . . . . . . . . . . . . . . . . . . Autonomous 81 | . . . . 37 44 . . . . . . . . . . . . . . . . . . . . . . . . . . Shots Hit Robots 2769 | . 149 25 . 36 169 39 17 243 2 . 45 145 4 38 . 35 170 35 40 12 58 212 16 22 12 63 168 172 229 104 509 Core Hits 2423 | . 82 13 . 18 98 23 5 100 1 . 25 119 2 61 . 38 195 38 30 26 42 230 13 37 5 42 161 473 154 60 332 Critical Hits 281 | . . . . 2 17 3 1 10 . . 7 6 1 3 . 2 6 2 2 . 5 8 1 5 2 7 31 42 35 11 72 Critical Kills 89 | . . . . . 8 1 . 3 . . 2 2 . . . . 2 1 . . 1 1 . 3 1 2 10 16 9 4 23 Critical Parts Destroyed 156 | . . . . 2 9 2 1 7 . . 4 4 1 2 . 1 4 . 1 . 4 7 1 2 1 3 15 18 23 6 38 Melee Attacks 1 | . 1 . . . . . . . . . . . . . . . . . . . . . . . . . . . . . . Impact . | . . . . . . . . . . . . . . . . . . . . . . . . . . . . . . . . Slashing . | . . . . . . . . . . . . . . . . . . . . . . . . . . . . . . . . Piercing . | . . . . . . . . . . . . . . . . . . . . . . . . . . . . . . . . Sneak Attacks 1 | . 1 . . . . . . . . . . . . . . . . . . . . . . . . . . . . . . Combat Hostiles . | . . . . . . . . . . . . . . . . . . . . . . . . . . . . . . . . Follow-up Attacks . | . . . . . . . . . . . . . . . . . . . . . . . . . . . . . . . . Damage Inflicted 211401 | . 2652 437 . 2828 7209 1037 401 7479 77 . 1976 9848 177 3609 . 2638 16971 3714 2913 1992 3987 21554 982 2946 687 4848 13528 31938 25698 6715 32560 Guns 22303 | . 1939 290 . . . . 196 681 . . . . . . . . . . . . 304 . . . . . . . 4376 1590 12927 Cannons 93652 | . . . . 2681 5749 979 205 6358 77 . 1787 5898 177 1452 . 1434 7971 1328 1834 351 2384 10211 799 1152 687 2904 8418 8383 7791 3361 9281 Explosions 95334 | . 713 147 . 147 1460 58 . 440 . . 189 3950 . 2157 . 1204 9000 2386 1079 1641 1299 11343 183 1794 . 1923 5073 23555 13531 1764 10298 Melee . | . . . . . . . . . . . . . . . . . . . . . . . . . . . . . . . . Ramming 54 | . . . . . . . . . . . . . . . . . . . . . . . . . . . . . . . 54 Kinetic 5919 | . 76 . . 2681 3162 . . . . . . . . . . . . . . . . . . . . . . . . . . Thermal 106133 | . 713 176 . . 2060 979 401 7207 77 . 1787 6734 177 1692 . 1546 8468 1804 1834 351 2384 10775 799 1152 687 2925 8455 8383 12080 4951 17536 Explosive 81544 | . . . . 147 1126 . . . . . . 605 . . . . 7995 1910 1079 1641 1299 10779 183 1794 . 1923 5073 23555 13531 1764 7140 Electromagnetic 15076 | . 1863 261 . . 861 58 . 272 . . 189 2509 . 1917 . 1092 508 . . . . . . . . . . . 87 . 5459 Impact . | . . . . . . . . . . . . . . . . . . . . . . . . . . . . . . . . Slashing . | . . . . . . . . . . . . . . . . . . . . . . . . . . . . . . . . Piercing . | . . . . . . . . . . . . . . . . . . . . . . . . . . . . . . . . Entropic 2675 | . . . . . . . . . . . . . . . . . . . . . 304 . . . . . . . . . 2371 Highest Corruption 21 | . . . . . 1 1 1 1 1 1 . . . . . . 1 1 1 1 . . . . . . 1 12 16 3 21 Average Corruption 3 | . . . . . 1 1 1 1 1 1 . . . . . . 1 1 1 1 . . . . . . 1 8 7 2 10 Corruption Purged 21 | . . . . . . . . . . . . . . . . . . . . . . . . . . . . . . . 21 Effects 384 | . . . . . 4 3 2 23 1 1 . . . . . . 17 10 10 2 . . . . . . 3 71 42 9 186 Message Errors 89 | . . . . . 2 1 1 10 . 1 . . . . . . 5 5 5 1 . . . . . . . 13 5 5 35 Matter Fused 41 | . . . . . . . . . . . . . . . . . . . . . . . . . . . . 9 7 2 23 Heat Flow Errors 31 | . . . . . . . . . . . . . . . . . . . . . . . . . . . . 4 5 1 21 Energy Discharges 39 | . . . . . . . . 6 . . . . . . . . 3 3 2 1 . . . . . . . 7 3 1 13 Parts Rejected 2 | . . . . . . . . . . . . . . . . . . . . . . . . . . . . . . . 2 Data Loss (minor) 44 | . . . . . 2 1 1 4 1 . . . . . . . 3 1 3 . . . . . . . 3 7 3 . 15 Data Loss (major) 11 | . . . . . . . . . . . . . . . . . . . . . . . . . . . . 4 . . 7 Misfires 3 | . . . . . . . . . . . . . . . . . . . . . . . . . . . . 1 1 . 1 Alerts 3 | . . . . . . . . . . . . . . . . . . . . . . . . . . . . . . . 3 Misdirections 17 | . . . . . . . . . . . . . . . . . . . . . . . . . . . . 9 3 . 5 Targeting Errors 90 | . . . . . . 1 . 3 . . . . . . . . 4 1 . . . . . . . . . 15 14 . 52 Weapon Failures 14 | . . . . . . . . . . . . . . . . . 2 . . . . . . . . . . 2 1 . 9 Overload Shots . | . . . . . . . . . . . . . . . . . . . . . . . . . . . . . . . . Overflow Damage 10270 | . 31 23 . 516 506 . . 225 27 . 121 597 . 51 . 136 838 226 301 18 164 1485 54 108 95 158 703 687 1730 341 1129 Projectiles 5139 | . . . . 516 496 . . 166 27 . 121 361 . 47 . 136 500 66 143 . 164 754 48 12 95 99 423 147 348 192 278 Explosions 5117 | . 31 23 . . 10 . . 59 . . . 236 . 4 . . 338 160 158 18 . 731 6 96 . 59 280 540 1382 149 837 Melee 14 | . . . . . . . . . . . . . . . . . . . . . . . . . . . . . . . 14 Knockbacks 18 | . . . . 9 8 . . . . . . . . . . . . . . . . . . . . . . . . . 1 Impact 1 | . . . . . . . . . . . . . . . . . . . . . . . . . . . . . . . 1 Kinetic 17 | . . . . 9 8 . . . . . . . . . . . . . . . . . . . . . . . . . . Secondary . | . . . . . . . . . . . . . . . . . . . . . . . . . . . . . . . . Self-Inflicted Damage 810 | . 55 . . . 60 . . . . . . 152 . . . . 44 . . . 44 9 . . . 9 . 115 79 . 243 Shots 25 | . 4 . . . 2 . . . . . . 7 . . . . 2 . . . 1 1 . . . 1 . 4 1 . 2 Rammed 2 | . . . . . . . . . . . . . . . . . . . . . . . . . . . . . . 1 1 Targets Rammed 2 | . . . . . . . . . . . . . . . . . . . . . . . . . . . . . . 1 1 Kicked . | . . . . . . . . . . . . . . . . . . . . . . . . . . . . . . . . Crushed . | . . . . . . . . . . . . . . . . . . . . . . . . . . . . . . . . Highest Temperature 872 | . . . . . 129 98 263 346 . . 26 87 . . . . 154 . . . . 424 190 195 . 131 179 265 469 240 872 Average Temperature 107 | . . . . . 46 48 107 88 . . 26 31 . . . . 72 . . . . 126 90 77 . 59 60 94 118 80 262 Received Heat Transfer 4051 | . 132 . . . 225 108 . 543 . . 66 264 . 102 . 30 477 36 9 . 256 276 . 66 . 96 237 541 150 80 357 Effects 10 | . . . . . . . . 1 . . . . . . . . . . . . . 1 . . . . . . . 2 6 Energy Bleed 3 | . . . . . . . . . . . . . . . . . . . . . . . . . . . . . . 2 1 Interference 4 | . . . . . . . . 1 . . . . . . . . . . . . . 1 . . . . . . . . 2 Damage (minor) 2 | . . . . . . . . . . . . . . . . . . . . . . . . . . . . . . . 2 Damage (core) 1 | . . . . . . . . . . . . . . . . . . . . . . . . . . . . . . . 1 Siege Activations 2 | . . . . . . . . . . . . . . . . . . . . . . . . . . . . . . . 2 Total Turns 16 | . . . . . . . . . . . . . . . . . . . . . . . . . . . . . . . 16 Longest Duration 8 | . . . . . . . . . . . . . . . . . . . . . . . . . . . . . . . 8 Robots Corrupted 34 | . . . . . . . . 1 . . . 8 . 5 . 1 . . . . . . . . . . . . . . 19 Combat Hostiles 32 | . . . . . . . . 1 . . . 8 . 4 . 1 . . . . . . . . . . . . . . 18 Parts Fried 125 | . 10 . . . 5 . . 3 . . . 21 . 8 . 5 1 . . . . . . . . . . . . . 72 Impact Corruptions 1 | . . . . . . . . . . . . . . . . . . . . . . . . . . . . . . . 1 Robots Melted 9 | . . . . . . . . 3 . . . . . . . . . . . . . . . . . . 1 3 2 . . Combat Hostiles 8 | . . . . . . . . 3 . . . . . . . . . . . . . . . . . . 1 2 2 . . Parts Melted 86 | . 1 . . . 5 8 . 30 . . . 5 . . . . 6 . . . . 4 . . . . 6 2 8 4 7 Heat Transferred 71589 | . 750 311 . . 3134 1664 733 9596 50 . 1075 3825 100 1025 . 875 4575 1150 1025 162 1225 5198 400 550 262 1462 6035 5906 7556 3531 9414 Parts Sabotaged 2 | . . . . . . . . . . . . . . . . . . . . . . . . 1 . . . . 1 . . Parts Stolen . | . . . . . . . . . . . . . . . . . . . . . . . . . . . . . . . . Parts Stripped . | . . . . . . . . . . . . . . . . . . . . . . . . . . . . . . . . Power Chain Reactions 46 | . 18 1 . . 6 . . 2 . . . 5 . 1 . 2 2 . . . . . . . . . . . . . 9 Missiles Intercepted . | . . . . . . . . . . . . . . . . . . . . . . . . . . . . . . . . Alert | -11 -10 -10 -10 -9 -8 -7 -7 -7 -7 -7 -6 -6 -6 -6 -6 -5 -5 -5 -5 -5 -4 -4 -4 -4 -4 -3 -3 -3 -2 -1 -1 ------- Run | Scr Mat Min Exi Min Mat Fac Was Fac Low Zio Pro Fac Low Low Dat Pro Fac Upp Upp War Pro Fac Upp Upp Zhi Pro Res Tes Res Acc Com Peak Influence 5700 | . 517 411 . 175 964 499 84 1268 . . . 1557 . . . . 2754 . . . . 2563 . . . . 1209 5305 5700 3772 3785 Initial 3420 | . . 201 . . 27 438 51 . . . . . . . . . 98 . . . . 29 . . . . 50 666 2983 3420 2413 Average 1075 | . 231 260 . 79 350 362 54 424 . . . 447 . . . . 992 . . . . 955 . . . . 601 4378 4264 3487 2697 Maximum Alert Level 5 | . 2 2 . . 3 2 . 4 . . . 4 . . . . 5 . . . . 5 . . . . 4 5 5 5 5 Low Security (%) 37 | 100 49 . . 100 36 5 100 33 . . . 34 . . . . 3 . . . . 4 . . . . 30 . . . 80 Level 1 13 | . 30 98 . . 26 47 . 24 . . . 21 . . . . 1 . . . . 14 . . . . 8 . . . . Level 2 14 | . 19 1 . . 23 46 . 25 . . . 25 . . . . 22 . . . . 21 . . . . 10 . . . . Level 3 11 | . . . . . 14 . . 4 . . . 9 . . . . 43 . . . . 21 . . . . 36 . . . . Level 4 6 | . . . . . . . . 11 . . . 8 . . . . 14 . . . . 20 . . . . 14 . . . . Level 5 8 | . . . . . . . . . . . . . . . . . 3 . . . . 12 . . . . . . 5 100 18 High Security 4 | . . . . . . . . . . . . . . . . . 10 . . . . 5 . . . . . . 94 . 1 Max Security 3 | . . . . . . . . . . . . . . . . . . . . . . . . . . . . 99 . . . Sterilizations 1 | . . . . . . . . . . . . . . . . . . . . . . . . . . . . 1 . . . Squads Dispatched 192 | . 8 . . . 9 3 . 15 . . . 14 . 1 . . 25 . . . . 27 . 1 . . 17 36 2 16 18 Investigation 35 | . 7 . . . 8 . . 5 . . . 5 . . . . 3 . . . . 3 . . . . 2 . . 1 1 Extermination 33 | . . . . . . 2 . 7 . . . 3 . . . . 4 . . . . 5 . . . . 5 . . 4 3 Reinforcement 20 | . 1 . . . . 1 . . . . . 4 . . . . 4 . . . . 5 . . . . 3 . 2 . . Assault 95 | . . . . . 1 . . 2 . . . 2 . 1 . . 13 . . . . 14 . 1 . . 6 30 . 11 14 Garrison 9 | . . . . . . . . 1 . . . . . . . . 1 . . . . . . . . . 1 6 . . . Intercept . | . . . . . . . . . . . . . . . . . . . . . . . . . . . . . . . . Construction Impeded 8 | . . . . . . . . . . . . 2 . . . . 2 . . . . 2 . . . . 2 . . . . Haulers Reinforced 7 | . . . . . . 1 . . . . . 2 . . . . 2 . . . . 1 . . . . 1 . . . . Stealth | -11 -10 -10 -10 -9 -8 -7 -7 -7 -7 -7 -6 -6 -6 -6 -6 -5 -5 -5 -5 -5 -4 -4 -4 -4 -4 -3 -3 -3 -2 -1 -1 --------- Run | Scr Mat Min Exi Min Mat Fac Was Fac Low Zio Pro Fac Low Low Dat Pro Fac Upp Upp War Pro Fac Upp Upp Zhi Pro Res Tes Res Acc Com Distress Signals 31 | . 1 . . . 4 . . 1 . . . . . . . . 2 . . 2 . 5 . . . . 5 . 11 . . Communications Jammed . | . . . . . . . . . . . . . . . . . . . . . . . . . . . . . . . . Distress Signals . | . . . . . . . . . . . . . . . . . . . . . . . . . . . . . . . . Times Spotted 1173 | . 35 . . 18 49 11 5 64 . . 21 56 2 31 . 22 93 13 12 22 20 100 6 17 . 16 70 162 192 42 94 Peak Tracking Total 34 | . 5 . . 7 7 4 3 7 . . 7 6 2 7 . 5 14 5 5 10 5 17 4 5 . 5 6 34 26 11 20 Tactical Retreats 70 | . 4 . . 1 1 . . 4 . . 1 5 . 4 . 3 . 1 2 1 . 4 1 . . 1 . 2 22 4 9 Traps | -11 -10 -10 -10 -9 -8 -7 -7 -7 -7 -7 -6 -6 -6 -6 -6 -5 -5 -5 -5 -5 -4 -4 -4 -4 -4 -3 -3 -3 -2 -1 -1 ------- Run | Scr Mat Min Exi Min Mat Fac Was Fac Low Zio Pro Fac Low Low Dat Pro Fac Upp Upp War Pro Fac Upp Upp Zhi Pro Res Tes Res Acc Com Traps Triggered 32 | . 2 . . . . 1 . 1 . . . 12 . . . . 3 . . . . . . . . . 4 4 . . 5 Indirectly 3 | . . . . . . . . . . . . 3 . . . . . . . . . . . . . . . . . . . Trap Hack Attempts . | . . . . . . . . . . . . . . . . . . . . . . . . . . . . . . . . Triggered . | . . . . . . . . . . . . . . . . . . . . . . . . . . . . . . . . Disarmed . | . . . . . . . . . . . . . . . . . . . . . . . . . . . . . . . . Reprogrammed . | . . . . . . . . . . . . . . . . . . . . . . . . . . . . . . . . Reused . | . . . . . . . . . . . . . . . . . . . . . . . . . . . . . . . . Traps Extracted . | . . . . . . . . . . . . . . . . . . . . . . . . . . . . . . . . Installed 2 | . . . . . . . . . . . . . . . . . . . . . 2 . . . . . . . . . . Triggered 10 | . . . . . . . . . 1 . . . . . . . . 1 2 6 . . . . . . . . . . . Machines | -11 -10 -10 -10 -9 -8 -7 -7 -7 -7 -7 -6 -6 -6 -6 -6 -5 -5 -5 -5 -5 -4 -4 -4 -4 -4 -3 -3 -3 -2 -1 -1 ---------- Run | Scr Mat Min Exi Min Mat Fac Was Fac Low Zio Pro Fac Low Low Dat Pro Fac Upp Upp War Pro Fac Upp Upp Zhi Pro Res Tes Res Acc Com Machines Disabled 216 | . 31 11 . 4 45 5 . 4 . . . 20 . 2 . . 26 5 4 1 1 17 . 2 . . 8 13 3 3 11 Max in Single Turn 8 | . 3 8 . 2 2 2 . 3 . . . 5 . 2 . . 3 3 2 . 1 4 . 1 . . 2 1 1 1 2 Garrison Access 14 | . . . . . 1 1 . 2 . . . 2 . . . . 3 . . . . 2 . . . . 1 1 1 . . Phase Generator 1 | . . . . . . . . . . . . . . . . . . . . . . . . . . . . . . . 1 Machines Sabotaged . | . . . . . . . . . . . . . . . . . . . . . . . . . . . . . . . . Garrisons Compromised . | . . . . . . . . . . . . . . . . . . . . . . . . . . . . . . . . Overloaded Fab Kills . | . . . . . . . . . . . . . . . . . . . . . . . . . . . . . . . . Fab Network Shutdowns 2 | . . . . . . . . 1 . . . . . . . . 1 . . . . . . . . . . . . . . Hacking | -11 -10 -10 -10 -9 -8 -7 -7 -7 -7 -7 -6 -6 -6 -6 -6 -5 -5 -5 -5 -5 -4 -4 -4 -4 -4 -3 -3 -3 -2 -1 -1 --------- Run | Scr Mat Min Exi Min Mat Fac Was Fac Low Zio Pro Fac Low Low Dat Pro Fac Upp Upp War Pro Fac Upp Upp Zhi Pro Res Tes Res Acc Com Machines Accessed 151 | . 10 . 4 . 16 4 . 27 . . . 14 1 . 4 1 14 . 1 6 1 14 2 1 8 1 10 . . 5 7 Terminals 80 | . 7 . . . 12 3 . 16 . . . 5 . . . 1 7 . . . 1 8 1 . . 1 6 . . 5 7 Fabricators 14 | . . . . . . . . 6 . . . 3 . . . . 2 . . . . 2 . . . . 1 . . . . Repair Stations 3 | . 1 . . . . . . . . . . . . . . . . . . . . 1 . . . . 1 . . . . Recycling Units 13 | . 2 . . . 2 . . 2 . . . 4 . . . . 2 . . . . 1 . . . . . . . . . Scanalyzers 3 | . . . . . 1 . . 1 . . . . . . . . . . . . . . . . . . 1 . . . . Garrison Access 12 | . . . . . 1 1 . 2 . . . 2 . . . . 3 . . . . 2 . . . . 1 . . . . Total Hacks 461 | . 33 . 13 . 61 21 . 78 . . . 24 1 . 27 1 37 . 1 16 1 42 2 1 44 2 28 . . 10 18 Successful 321 | . 22 . 13 . 41 14 . 51 . . . 15 1 . 27 1 18 . 1 16 1 22 2 1 44 2 14 . . 7 8 Failed 140 | . 11 . . . 20 7 . 27 . . . 9 . . . . 19 . . . . 20 . . . . 14 . . 3 10 Catastrophic 17 | . . . . . 4 . . 1 . . . 2 . . . . 2 . . . . . . . . . 2 . . 1 5 Database Lockouts . | . . . . . . . . . . . . . . . . . . . . . . . . . . . . . . . . Manual 249 | . 29 . 1 . 46 16 . 51 . . . 14 . . . . 24 . . 1 . 27 . . . . 15 . . 8 17 Terminals 261 | . 26 . . . 56 19 . 49 . . . 9 . . . 1 24 . . . 1 30 1 . . 2 15 . . 10 18 Fabricators 44 | . . . . . . . . 23 . . . 6 . . . . 4 . . . . 7 . . . . 4 . . . . Repair Stations 13 | . 5 . . . . . . . . . . . . . . . . . . . . 2 . . . . 6 . . . . Recycling Units 15 | . 2 . . . 2 . . 2 . . . 6 . . . . 2 . . . . 1 . . . . . . . . . Scanalyzers 5 | . . . . . 2 . . 2 . . . . . . . . . . . . . . . . . . 1 . . . . Garrison Access 19 | . . . . . 1 2 . 2 . . . 3 . . . . 7 . . . . 2 . . . . 2 . . . . Terminal Hacks 189 | . 9 . 13 . 25 11 . 13 . . . 3 1 . 27 1 7 . 1 16 1 6 2 1 44 2 2 . . 2 2 Record 76 | . . . 12 . . . . . . . . . . . 11 1 . . . 15 1 . 1 1 32 2 . . . . . Part Schematic 18 | . . . . . . 2 . 4 . . . . . . 7 . . . . . . 1 . . 4 . . . . . . Robot Schematic 7 | . . . . . 1 . . . . . . . . . 6 . . . . . . . . . . . . . . . . Robot Analysis 8 | . 2 . . . 2 . . . . . . . . . . . . . . . . . . . 4 . . . . . . Prototype ID Bank 11 | . 1 . . . . 1 . 1 . . . . . . 3 . 1 . . . . . . . 4 . . . . . . Open Door 5 | . . . . . . . . . . . . . 1 . . . . . 1 1 . . 1 . . . . . . . 1 Level Access Points 1 | . . . . . 1 . . . . . . . . . . . . . . . . . . . . . . . . . . Branch Access Points 7 | . . . . . 2 1 . 1 . . . 1 . . . . 1 . . . . 1 . . . . . . . . . Emergency Access Points 1 | . . . . . 1 . . . . . . . . . . . . . . . . . . . . . . . . . . Terminal Index 5 | . . . . . . 1 . 1 . . . . . . . . 1 . . . . 1 . . . . . . . . 1 Fabricator Index 2 | . . . . . . 1 . 1 . . . . . . . . . . . . . . . . . . . . . . . Alert Level 8 | . . . . . 4 1 . . . . . 1 . . . . . . . . . 1 . . . . . . . 1 . Unreport Threat 25 | . 3 . . . 7 2 . 3 . . . 1 . . . . 4 . . . . 2 . . . . 2 . . 1 . Locate Traps 1 | . . . . . 1 . . . . . . . . . . . . . . . . . . . . . . . . . . Reinforcement Status 1 | . . . . . 1 . . . . . . . . . . . . . . . . . . . . . . . . . . Hauler Manifests 1 | . . . . . 1 . . . . . . . . . . . . . . . . . . . . . . . . . . Registered Components 2 | . . . . . 1 1 . . . . . . . . . . . . . . . . . . . . . . . . . Registered Prototypes 1 | . . . . . . 1 . . . . . . . . . . . . . . . . . . . . . . . . . Zone Layout 8 | . 3 . . . 3 . . 2 . . . . . . . . . . . . . . . . . . . . . . . EX-Prototype ID Bank 1 | . . . 1 . . . . . . . . . . . . . . . . . . . . . . . . . . . . Fabricator Hacks 26 | . . . . . . . . 15 . . . 3 . . . . 3 . . . . 3 . . . . 2 . . . . Network Status 1 | . . . . . . . . 1 . . . . . . . . . . . . . . . . . . . . . . . Load Schematic 12 | . . . . . . . . 6 . . . 2 . . . . 1 . . . . 2 . . . . 1 . . . . Build 13 | . . . . . . . . 8 . . . 1 . . . . 2 . . . . 1 . . . . 1 . . . . Repair Station Hacks 10 | . 4 . . . . . . . . . . . . . . . . . . . . 2 . . . . 4 . . . . Scan Component 4 | . 1 . . . . . . . . . . . . . . . . . . . . 1 . . . . 2 . . . . Repair 4 | . 1 . . . . . . . . . . . . . . . . . . . . 1 . . . . 2 . . . . Refit 2 | . 2 . . . . . . . . . . . . . . . . . . . . . . . . . . . . . . Recycling Unit Hacks . | . . . . . . . . . . . . . . . . . . . . . . . . . . . . . . . . Scanalyzer 4 | . . . . . 2 . . 2 . . . . . . . . . . . . . . . . . . . . . . . Insert Component 2 | . . . . . 1 . . 1 . . . . . . . . . . . . . . . . . . . . . . . Analyze 2 | . . . . . 1 . . 1 . . . . . . . . . . . . . . . . . . . . . . . Garrison Access Hacks 12 | . . . . . 1 1 . 2 . . . 2 . . . . 3 . . . . 2 . . . . 1 . . . . Seal Access 12 | . . . . . 1 1 . 2 . . . 2 . . . . 3 . . . . 2 . . . . 1 . . . . Unauthorized Hacks 80 | . 9 . . . 13 2 . 19 . . . 7 . . . . 5 . . . . 9 . . . . 5 . . 5 6 Terminals 62 | . 7 . . . 11 2 . 13 . . . 2 . . . . 3 . . . . 8 . . . . 5 . . 5 6 Track 1 | . 1 . . . . . . . . . . . . . . . . . . . . . . . . . . . . . . Assimilate 13 | . . . . . 1 1 . 2 . . . . . . . . 1 . . . . 2 . . . . 3 . . 3 . Botnet 44 | . 5 . . . 8 1 . 11 . . . 2 . . . . 2 . . . . 6 . . . . 2 . . 2 5 Detonate 1 | . . . . . 1 . . . . . . . . . . . . . . . . . . . . . . . . . . Disrupt 2 | . . . . . 1 . . . . . . . . . . . . . . . . . . . . . . . . . 1 Sabotage 1 | . 1 . . . . . . . . . . . . . . . . . . . . . . . . . . . . . . Fabricators 4 | . . . . . . . . 4 . . . . . . . . . . . . . . . . . . . . . . . Report 1 | . . . . . . . . 1 . . . . . . . . . . . . . . . . . . . . . . . Siphon 3 | . . . . . . . . 3 . . . . . . . . . . . . . . . . . . . . . . . Repair Stations . | . . . . . . . . . . . . . . . . . . . . . . . . . . . . . . . . Recycling Units 14 | . 2 . . . 2 . . 2 . . . 5 . . . . 2 . . . . 1 . . . . . . . . . Monitor 1 | . . . . . . . . . . . . 1 . . . . . . . . . . . . . . . . . . . Tunnel 13 | . 2 . . . 2 . . 2 . . . 4 . . . . 2 . . . . 1 . . . . . . . . . Scanalyzers . | . . . . . . . . . . . . . . . . . . . . . . . . . . . . . . . . Garrison Access . | . . . . . . . . . . . . . . . . . . . . . . . . . . . . . . . . Data Cores Recovered 4 | . . . . . 1 . . . . . . . . . . . 2 . . . . . . . . . . . . . 1 Used 3 | . . . . . 1 . . . . . . . . . . . 2 . . . . . . . . . . . . . . Hacking Detections 81 | . 6 . . . 10 3 . 21 . . . 6 . . . . 10 . . . . 8 . . . . 8 . . 3 6 Full Trace Events 22 | . 5 . . . 8 . . 2 . . . . . . . . 1 . . . . 2 . . . . 2 . . 1 1 Feedback Events 2 | . . . . . 1 . . . . . . . . . . . 1 . . . . . . . . . . . . . . Corruption 2 | . . . . . 1 . . . . . . . . . . . 1 . . . . . . . . . . . . . . Feedback Blocked . | . . . . . . . . . . . . . . . . . . . . . . . . . . . . . . . . Robot Schematics Acquired 7 | . . . . . 1 . . . . . . . . . 6 . . . . . . . . . . . . . . . . Robots Built 1 | . . . . . . . . . . . . . . . . . . . . . . 1 . . . . . . . . . Matter 153 | . . . . . . . . . . . . . . . . . . . . . . 153 . . . . . . . . . Time 40 | . . . . . . . . . . . . . . . . . . . . . . 40 . . . . . . . . . Total Robot Build Rating 1 | . . . . . . . . . . . . . . . . . . . . . . 1 . . . . . . . . . Part Schematics Acquired 20 | . . . . . 1 2 . 5 . . . . . . 7 . . . . . . 1 . . 4 . . . . . . Parts Built 16 | . . . . . . . . 13 . . . 1 . . . . 1 . . . . . . . . . 1 . . . . Matter 2042 | . . . . . . . . 1289 . . . 190 . . . . 285 . . . . . . . . . 278 . . . . Time 869 | . . . . . . . . 629 . . . 95 . . . . 76 . . . . . . . . . 69 . . . . Total Part Build Rating 83 | . . . . . . . . 64 . . . 5 . . . . 5 . . . . . . . . . 9 . . . . Parts Repaired 4 | . 1 . . . . . . . . . . . . . . . . . . . . 1 . . . . 2 . . . . Time 170 | . 26 . . . . . . . . . . . . . . . . . . . . 44 . . . . 100 . . . . Parts Recycled . | . . . . . . . . . . . . . . . . . . . . . . . . . . . . . . . . Recycled Matter . | . . . . . . . . . . . . . . . . . . . . . . . . . . . . . . . . Retrieved Matter . | . . . . . . . . . . . . . . . . . . . . . . . . . . . . . . . . Retrieved Components . | . . . . . . . . . . . . . . . . . . . . . . . . . . . . . . . . Parts Scanalyzed 2 | . . . . . 1 . . 1 . . . . . . . . . . . . . . . . . . . . . . . Part Schematics Acquired 2 | . . . . . 1 . . 1 . . . . . . . . . . . . . . . . . . . . . . . Parts Damaged . | . . . . . . . . . . . . . . . . . . . . . . . . . . . . . . . . Bothacking | -11 -10 -10 -10 -9 -8 -7 -7 -7 -7 -7 -6 -6 -6 -6 -6 -5 -5 -5 -5 -5 -4 -4 -4 -4 -4 -3 -3 -3 -2 -1 -1 ------------ Run | Scr Mat Min Exi Min Mat Fac Was Fac Low Zio Pro Fac Low Low Dat Pro Fac Upp Upp War Pro Fac Upp Upp Zhi Pro Res Tes Res Acc Com Used RIF Installer . | . . . . . . . . . . . . . . . . . . . . . . . . . . . . . . . . Robots Hacked 7 | . 1 . . . . . . . . . . . . . . . . . . . . 6 . . . . . . . . . Non-combat 7 | . 1 . . . . . . . . . . . . . . . . . . . . 6 . . . . . . . . . Combat . | . . . . . . . . . . . . . . . . . . . . . . . . . . . . . . . . Robot Hacks Applied 8 | . 1 . . . . . . . . . . . . . . . . . . . . 7 . . . . . . . . . parse_system 3 | . 1 . . . . . . . . . . . . . . . . . . . . 2 . . . . . . . . . find_chute 2 | . . . . . . . . . . . . . . . . . . . . . . 2 . . . . . . . . . find_recycling 1 | . . . . . . . . . . . . . . . . . . . . . . 1 . . . . . . . . . find_station 1 | . . . . . . . . . . . . . . . . . . . . . . 1 . . . . . . . . . check_alert 1 | . . . . . . . . . . . . . . . . . . . . . . 1 . . . . . . . . . Relay Couplers Released 7 | . . . . . 1 . . 2 . . . 1 . . . . . . . . . . . . . . . 1 1 1 . Machine Destruction 3 | . . . . . 1 . . . . . . . . . . . . . . . . . . . . . . 1 1 . . Programmers 4 | . . . . . . . . 2 . . . 1 . . . . . . . . . . . . . . . . . 1 . Robots Rewired 11 | . . . . . . . . . . . 2 . . . . . . 3 . 5 . . . 1 . . . . . . . Allies Hacked 1 | . . . . . . . . 1 . . . . . . . . . . . . . . . . . . . . . . . Hacks Repelled . | . . . . . . . . . . . . . . . . . . . . . . . . . . . . . . . . Allies | -11 -10 -10 -10 -9 -8 -7 -7 -7 -7 -7 -6 -6 -6 -6 -6 -5 -5 -5 -5 -5 -4 -4 -4 -4 -4 -3 -3 -3 -2 -1 -1 -------- Run | Scr Mat Min Exi Min Mat Fac Was Fac Low Zio Pro Fac Low Low Dat Pro Fac Upp Upp War Pro Fac Upp Upp Zhi Pro Res Tes Res Acc Com Total Allies 55 | . . . . . 1 1 18 2 . 6 2 . . . . 2 . 3 . 5 . 1 . 1 . . 1 . 3 6 3 Largest Group 18 | . . . . . 1 2 18 10 . 6 6 . . . . 2 2 3 3 8 7 1 . 1 1 1 1 1 3 3 3 Highest-Rated Group 456 | . . . . . 26 52 456 316 . 126 126 . . . . 193 193 93 93 335 304 11 . 49 49 49 44 44 138 368 366 Highest-Rated Ally 131 | . . . . . 26 26 35 35 . 28 30 . . . . 99 99 31 31 60 60 11 . 49 49 49 44 44 46 131 131 Total Orders 63 | . . . . . 8 4 . 17 . . . . . . . . . . 2 . . 3 . 2 2 . 2 7 . 16 . STAY 34 | . . . . . 4 3 . 9 . . . . . . . . . . 1 . . 1 . 1 1 . 1 4 . 9 . FOLLOW 28 | . . . . . 4 1 . 8 . . . . . . . . . . 1 . . 1 . 1 1 . 1 3 . 7 . AID 1 | . . . . . . . . . . . . . . . . . . . . . . 1 . . . . . . . . . Ally Attacks 312 | . . . . . . . 101 29 . . 40 . . . . 15 34 . . 42 33 . . . . 2 . . 13 . 3 Total Damage 11125 | . . . . . . . 4472 822 . . 770 . . . . 698 1914 . . 1186 787 . . . . 94 . . 359 . 23 Kills 57 | . . . . . . . 12 7 . . 5 . . . . 8 17 . . 4 3 . . . . . . . 1 . . Allies Corrupted 2 | . . . . . . . . . . . . . . . . . 1 . . . . . . . . . . . . 1 . Allies Melted 1 | . . . . . . . . . . . 1 . . . . . . . . . . . . . . . . . . . . Intel | -11 -10 -10 -10 -9 -8 -7 -7 -7 -7 -7 -6 -6 -6 -6 -6 -5 -5 -5 -5 -5 -4 -4 -4 -4 -4 -3 -3 -3 -2 -1 -1 ------- Run | Scr Mat Min Exi Min Mat Fac Was Fac Low Zio Pro Fac Low Low Dat Pro Fac Upp Upp War Pro Fac Upp Upp Zhi Pro Res Tes Res Acc Com Robot Analysis Total 8 | . 2 . . . 2 . . . . . . . . . . . . . . . . . . . 4 . . . . . . Derelict Logs Recovered 16 | . . . . 1 . . . . 1 . 2 . 1 2 . 2 . . 2 . 3 . 2 . . . . . . . . Drone Launches . | . . . . . . . . . . . . . . . . . . . . . . . . . . . . . . . . Drone Recoveries . | . . . . . . . . . . . . . . . . . . . . . . . . . . . . . . . . Exploration | -11 -10 -10 -10 -9 -8 -7 -7 -7 -7 -7 -6 -6 -6 -6 -6 -5 -5 -5 -5 -5 -4 -4 -4 -4 -4 -3 -3 -3 -2 -1 -1 ------------- Run | Scr Mat Min Exi Min Mat Fac Was Fac Low Zio Pro Fac Low Low Dat Pro Fac Upp Upp War Pro Fac Upp Upp Zhi Pro Res Tes Res Acc Com Turns Passed 67691 | 39 3083 446 1024 1040 3737 1096 473 5385 241 941 1976 3108 2111 2412 123 2395 3261 1757 2181 1254 2192 4374 1629 2621 423 1960 3327 1644 1553 1112 8773 Spaces Moved 45473 | 44 2831 469 1161 948 3131 798 381 3637 196 761 1569 2050 1689 1820 103 1693 1754 1327 1701 942 1659 1987 1216 1941 278 1393 1558 959 936 627 3914 Core 387 | 11 . . . . . . . . . . . . . . . . . . . . . . . . . . . . . . 376 Treads 1766 | . . . . . . . . . . . . . . . . . . . . . . . . . . . . 31 . . 1735 Legs . | . . . . . . . . . . . . . . . . . . . . . . . . . . . . . . . . Wheels 43319 | 33 2830 469 1161 948 3131 798 381 3637 196 761 1569 2050 1689 1820 103 1693 1754 1327 1701 942 1659 1987 1216 1941 278 1393 1558 928 936 627 1803 Hover 1 | . 1 . . . . . . . . . . . . . . . . . . . . . . . . . . . . . . Flight . | . . . . . . . . . . . . . . . . . . . . . . . . . . . . . . . . Fastest Speed 50 | 50 76 80 80 90 80 100 100 110 120 110 110 110 110 110 120 110 110 120 120 120 120 120 130 120 120 120 110 110 113 110 50 Average Speed 120 | 72 79 80 87 94 97 100 105 112 120 119 113 118 119 119 120 119 119 120 120 120 120 129 130 128 128 129 124 121 115 111 195 Slowest Speed 900 | 80 80 80 90 100 100 100 110 120 120 120 120 120 120 120 120 120 120 120 120 140 120 150 130 130 150 130 130 205 116 113 900 Overloaded Moves . | . . . . . . . . . . . . . . . . . . . . . . . . . . . . . . . . Propulsion Burnouts . | . . . . . . . . . . . . . . . . . . . . . . . . . . . . . . . . Robots Hopped . | . . . . . . . . . . . . . . . . . . . . . . . . . . . . . . . . Cave-ins Triggered 1 | . . . . . . . . . . . . . . . . . . . . . . . . . . . . 1 . . . Teleports 1 | . . . . . . . . . . . . . . . . . . . . . . . . . 1 . . . . . . Exploration Rate (%) 73 | 3 99 68 93 99 99 14 97 62 35 83 99 51 99 99 76 99 42 99 99 95 99 35 98 98 62 99 34 95 27 14 85 Regions Visited 31 Branch Regions 20 Pre-discovered Areas 23 | . 2 1 . . 2 . . 2 . 3 . 4 . 1 1 1 2 . . . 2 1 1 . . . . . . . . Known Exits Taken 16 | . 1 1 1 1 1 . . 1 . . 1 1 . . . . 1 . 1 . . 1 . 1 . 1 1 1 . 1 . Unknown Exits Taken 13 | 1 . . . . . . . . 1 1 . . 1 1 1 1 . 1 . 1 1 . 1 . 1 . . . 1 . . Scrap Searched 37 | . . 1 . 1 . . . . 1 2 4 . 2 2 . 3 . 4 4 . 5 . 1 2 . 5 . . . . . Spaces Dug 259 | . . . . 20 10 . . 7 . . . 1 . 1 . . 29 7 9 . 4 17 2 . . 41 16 16 6 22 51 Terrain Destroyed 3705 | . 212 69 . 63 439 . . 64 1 . 15 167 2 13 . 27 299 94 46 27 98 648 38 145 . 248 220 347 95 50 278 Melee . | . . . . . . . . . . . . . . . . . . . . . . . . . . . . . . . . Projectile 648 | . . . . 5 40 . . 35 1 . 15 45 2 9 . 12 60 19 14 1 13 77 8 14 . 11 75 43 30 50 69 AOE 3057 | . 212 69 . 58 399 . . 29 . . . 122 . 4 . 15 239 75 32 26 85 571 30 131 . 237 145 304 65 . 209 Terrain Rammed . | . . . . . . . . . . . . . . . . . . . . . . . . . . . . . . . . Walls Destroyed . | . . . . . . . . . . . . . . . . . . . . . . . . . . . . . . . . Machines Disabled . | . . . . . . . . . . . . . . . . . . . . . . . . . . . . . . . . Actions | -11 -10 -10 -10 -9 -8 -7 -7 -7 -7 -7 -6 -6 -6 -6 -6 -5 -5 -5 -5 -5 -4 -4 -4 -4 -4 -3 -3 -3 -2 -1 -1 --------- Run | Scr Mat Min Exi Min Mat Fac Was Fac Low Zio Pro Fac Low Low Dat Pro Fac Upp Upp War Pro Fac Upp Upp Zhi Pro Res Tes Res Acc Com Total 54689 | 48 3250 495 1172 1078 3579 1045 441 4693 198 789 1700 2522 1772 1972 102 1999 2618 1433 1772 1047 1769 3524 1243 2031 332 1470 2716 1196 1200 923 4560 Wait 5792 | . 161 5 . 120 216 205 31 859 . 22 38 304 58 52 . 242 618 62 14 11 7 1291 12 47 6 16 952 3 23 213 204 Move 45442 | 43 2830 468 1160 947 3130 798 380 3636 195 760 1568 2049 1688 1819 102 1692 1753 1326 1700 941 1658 1986 1215 1940 277 1392 1557 958 935 626 3913 Hop . | . . . . . . . . . . . . . . . . . . . . . . . . . . . . . . . . Pick Up 84 | . 4 1 . . . 1 2 4 . 1 . 7 4 6 . 3 9 1 1 8 4 5 . 4 6 1 1 3 . 1 7 Fast Attach 238 | 5 13 . 5 1 20 5 4 18 . 3 1 3 5 3 . . 11 1 1 11 1 4 2 1 5 . 16 34 13 1 51 Attach 43 | . 2 . . . . . . 2 . . . 4 3 7 . 2 5 1 1 . 2 . . 2 3 . . . . . 9 Detach 19 | . 1 . . . . . . 1 . . 1 3 1 1 . . 1 1 1 . 1 . . . 2 . . . . . 5 Swap 91 | . 2 . . 1 4 . 2 6 . . 4 10 . . . . 2 2 2 8 3 14 . 4 4 2 6 2 1 . 12 Drop 296 | . 11 1 7 . 20 5 8 22 . 3 1 11 11 9 . 1 18 1 2 18 4 11 1 3 9 1 13 30 11 . 64 Fire 1864 | . 199 20 . 8 137 28 5 96 3 . 26 80 2 58 . 34 131 37 45 15 57 161 13 25 12 44 122 133 89 61 223 Melee 1 | . 1 . . . . . . . . . . . . . . . . . . . . . . . . . . . . . . Ram 2 | . . . . . . . . . . . . . . . . . . . . . . . . . . . . . . 1 1 Kick . | . . . . . . . . . . . . . . . . . . . . . . . . . . . . . . . . Crush . | . . . . . . . . . . . . . . . . . . . . . . . . . . . . . . . . Escape Stasis 41 | . . . . . . . . 8 . . . . . . . . . . . . . . . . . . . 14 19 . . Rewire 12 | . . . . . . . . 1 . . . . . . . . . . . . . . . . . . . . . . 11 Trap 2 | . . . . . . . . . . . . . . . . . . . . . 2 . . . . . . . . . . Miscellaneous 762 | . 26 . . 1 52 3 9 40 . . 61 51 . 17 . 25 70 1 5 35 30 52 . 5 8 14 49 19 109 20 60 Route ------- -11/Scrapyard -10/Materials (discovered 5 exits: *Mat x3 / *Min x2) -10/Mines (discovered 3 exits: *Mat x2 / *Exi) -10/Exiles -9/Mines (discovered 2 exits: *Mat x2) -8/Materials (discovered 3 exits: *Fac x3) -7/Factory (discovered 2 exits: Low x2) -7/Waste -7/Factory (discovered 5 exits: *Fac x3 / *Low x2) -7/Lower Caves -7/Zion -6/Proximity Caves -6/Factory (discovered 6 exits: *Fac x2 / *Low x2 / *Ext x2) -6/Lower Caves -6/Lower Caves (discovered 2 exits: *Fac / *Dat) -6/Data Miner -5/Proximity Caves -5/Factory (discovered 3 exits: *Fac / *Upp x2) -5/Upper Caves -5/Upper Caves (discovered 2 exits: *Fac / *War) -5/Warlord -4/Proximity Caves -4/Factory (discovered 2 exits: *Upp x2) -4/Upper Caves -4/Upper Caves (discovered 2 exits: *Res / *Zhi) -4/Zhirov -3/Proximity Caves -3/Research (discovered 3 exits: Res / *Tes x2) -3/Testing -2/Research (discovered 2 exits: *Acc x2) -1/Access (discovered 2 exits: Sur / *Com) -1/Command (discovered 2 exits: *Sur x2) To Epsilon Eridani History --------- Turn | Location | Event 1 | -11/Scrapyard | Upgraded with Propulsion slot (x1) 1 | -11/Scrapyard | Upgraded with Utility slot (x1) 1 | -11/Scrapyard | Upgraded with Weapon slot (x1) 2 | -11/Scrapyard | Discovered new exit (range 16) 40 | -11/Scrapyard | Entered Materials 40 | -10/Materials | Discovered new exit (range 14) 298 | -10/Materials | Discovered new exit (range 7) 300 | -10/Materials | Build established: Mutant 455 | -10/Materials | Discovered new exit (range 16) 482 | -10/Materials | Reached level 2 505 | -10/Materials | Upgraded with Utility slot (x1) 541 | -10/Materials | Discovered new exit (range 10) 790 | -10/Materials | Identified exit to Mines 931 | -10/Materials | Discovered new exit (range 8) 946 | -10/Materials | Reached level 3 949 | -10/Materials | Identified exit to Materials 955 | -10/Materials | Upgraded with Propulsion slot (x1) 2075 | -10/Materials | Reached level 4 2088 | -10/Materials | Upgraded with Utility slot (x1) 3014 | -10/Materials | Repaired EM Pulse Gun 3015 | -10/Materials | Reached level 5 3027 | -10/Materials | Upgraded with Power slot (x1) 3027 | -10/Materials | Upgraded with Weapon slot (x1) 3123 | -10/Materials | Entered Mines 3124 | -10/Mines | Met a Derelict bent on vengeance 3173 | -10/Mines | Discovered exit to Materials (range 8) 3200 | -10/Mines | Discovered exit to Materials (range 16) 3207 | -10/Mines | Found a hidden stash of uninstalled traps 3211 | -10/Mines | Learned location of Storage (-9) 3323 | -10/Mines | Deemed a non-threat by the Exiles lab entrance 3323 | -10/Mines | Discovered new exit (range 5) 3326 | -10/Mines | Identified exit to Exiles 3330 | -10/Mines | Build established: Gunner 3437 | -10/Mines | Found a damaged Exp. Sensor Array with a note attached 3440 | -10/Mines | Found Prototype Device 3569 | -10/Mines | Entered Exiles 3590 | -10/Exiles | Met 8R-AWN 3603 | -10/Exiles | Met EX-HEX 3627 | -10/Exiles | Met EX-BIN 3642 | -10/Exiles | Met EX-DEC 3670 | -10/Exiles | Visited The Gauntlet 3754 | -10/Exiles | Aligned with FarCom system 3755 | -10/Exiles | Given EX-Vault access code 3774 | -10/Exiles | Opened EX-Vault 3779 | -10/Exiles | Found AWS/Autocannon 3799 | -10/Exiles | Found YOLO Cannon 3822 | -10/Exiles | Warned to stay clear of 0b10 Research branches 3907 | -10/Exiles | Discovered new exit (range 16) 3919 | -10/Exiles | Identified exit to Mines 4593 | -10/Exiles | Left Exiles lab with AWS/Autocannon 4593 | -10/Exiles | Entered Mines 4594 | -9/Mines | Assembled infested the area 4595 | -9/Mines | Reached level 6 4599 | -9/Mines | Assisted by a Guerilla fighting off Assembled 4646 | -9/Mines | Destroyed 9 combat bots 4806 | -9/Mines | Learned Materials terminal intel 4894 | -9/Mines | Joined a pair of Derelicts in attacking an 0b10 outpost 5007 | -9/Mines | Discovered new exit (range 17) 5020 | -9/Mines | Identified exit to Materials 5079 | -9/Mines | Received a Rocket Launcher from a helpful Derelict 5080 | -9/Mines | Upgraded with Weapon slot (x1) 5164 | -9/Mines | Discovered exit to Materials (range 6) 5535 | -9/Mines | Reached level 7 5633 | -9/Mines | Entered Materials 5634 | -8/Materials | Loaded intel: 12 terminal locations 5635 | -8/Materials | Reached level 8 5792 | -8/Materials | Upgraded with Utility slot (x2) 5994 | -8/Materials | Discovered new exit (range 10) 6014 | -8/Materials | Reached level 9 6271 | -8/Materials | Discovered new exit (range 16) 6372 | -8/Materials | Build established: Wizard-Gunner 6540 | -8/Materials | Reached level 10 6571 | -8/Materials | Destroyed 7 combat bots 6610 | -8/Materials | Upgraded with Weapon slot (x1) 6933 | -8/Materials | Identified Exp. Sensor Array 7226 | -8/Materials | Reached level 11 7429 | -8/Materials | Discovered new exit (range 5) 8033 | -8/Materials | First assault squad dispatched 8075 | -8/Materials | Build established: Hacker-Gunner 8126 | -8/Materials | Reached level 12 8160 | -8/Materials | Upgraded with Propulsion slot (x1) 8759 | -8/Materials | Build established: Hacker-Mutant 9244 | -8/Materials | Reached level 13 9289 | -8/Materials | Identified exit to Factory 9370 | -8/Materials | Entered Factory 9370 | -7/Factory | Accompanied by 1 ally 9372 | -7/Factory | Reached level 14 9483 | -7/Factory | Build established: Hacker-Gunner 10401 | -7/Factory | Identified exit to Lower Caves 10466 | -7/Factory | Sucked down chute 10466 | -7/Factory | Entered Waste 10505 | -7/Waste | Warlord forces began an assault 10564 | -7/Waste | Spotted C-40 Crusher 10567 | -7/Waste | Spotted C-40 Crusher 10569 | -7/Waste | Spotted C-40 Crusher 10577 | -7/Waste | Reached level 15 10577 | -7/Waste | Allies destroyed C-40 Crusher 10579 | -7/Waste | Allies destroyed C-40 Crusher 10579 | -7/Waste | Destroyed C-40 Crusher 10583 | -7/Waste | Spotted C-40 Crusher 10586 | -7/Waste | Allies destroyed C-40 Crusher 10622 | -7/Waste | Spotted C-40 Crusher 10625 | -7/Waste | Allies destroyed C-40 Crusher 10689 | -7/Waste | Spotted C-40 Crusher 10697 | -7/Waste | Allies destroyed C-40 Crusher 10714 | -7/Waste | Found Damper Plating 10775 | -7/Waste | Discovered new exit (range 16) 10939 | -7/Waste | Entered Factory 10939 | -7/Factory | Accompanied by 10 allies 12010 | -7/Factory | Fabricated Plasma Cannon? 12136 | -7/Factory | Fabricated Plasma Cannon (x2) 12231 | -7/Factory | Reached level 16 12295 | -7/Factory | Discovered new exit (range 16) 12430 | -7/Factory | Upgraded with Power slot (x1) 12485 | -7/Factory | Fabricated Imp. Cryofiber Web (x1) 13543 | -7/Factory | Fabricated Cld. Ion Engine? 13781 | -7/Factory | Discovered new exit (range 4) 13930 | -7/Factory | Found Powered Armor 14125 | -7/Factory | Garrison activated, responded to threat 14913 | -7/Factory | Fabricated Neutron Cannon (x2) 15025 | -7/Factory | Fabricated Neutron Cannon (x2) 15138 | -7/Factory | Fabricated Neutron Cannon (x2) 15299 | -7/Factory | Fabricated Imp. Proton Missile Launcher (x1) 15324 | -7/Factory | Build established: Machinist-Gunner 15361 | -7/Factory | Discovered new exit (range 3) 15432 | -7/Factory | Reached level 17 15443 | -7/Factory | Upgraded with Utility slot (x1) 15553 | -7/Factory | Local fabrication network quarantined 15739 | -7/Factory | First assault squad dispatched 15883 | -7/Factory | Core integrity fell below 50% 15920 | -7/Factory | Destroyed 8 combat bots 16324 | -7/Factory | Entered Lower Caves 16338 | -7/Lower Caves | Learned Factory security intel 16498 | -7/Lower Caves | A Derelict revealed a hidden shortcut to a safe place 16565 | -7/Lower Caves | Entered Zion 16609 | -7/Zion | System corruption cleaned by Quarantine Array 16685 | -7/Zion | Found CR-A16's Pointy Stick 16776 | -7/Zion | Given A8's code to call for help 16798 | -7/Zion | Learned location of Armory (-3) 16940 | -7/Zion | Learned location of Extension (-6) 17042 | -7/Zion | Gained Derelict followers 17206 | -7/Zion | Rebuked by Imprinter 17416 | -7/Zion | Gained Derelict followers 17475 | -7/Zion | Discovered new exit (range 17) 17506 | -7/Zion | Entered Proximity Caves 17506 | -6/Proximity Caves | Accompanied by 6 allies 17507 | -6/Proximity Caves | Identified exit to Factory 17563 | -6/Proximity Caves | Reached level 18 18244 | -6/Proximity Caves | Attracted the attention of an 0b10 checkpoint 18271 | -6/Proximity Caves | Learned 4 Factory zone layouts 18530 | -6/Proximity Caves | Attracted the attention of an 0b10 outpost 18568 | -6/Proximity Caves | Destroyed 7 combat bots 18779 | -6/Proximity Caves | Learned Factory emergency access door positions 19482 | -6/Proximity Caves | Entered Factory 19483 | -6/Factory | Identified exit to Lower Caves 19484 | -6/Factory | Reached level 19 19756 | -6/Factory | Discovered exit to Lower Caves (range 9) 20228 | -6/Factory | Fabricated Imp. Proton Missile Launcher (x1) 20509 | -6/Factory | Identified exit to Extension 20758 | -6/Factory | Reached level 20 20984 | -6/Factory | Discovered new exit (range 16) 21232 | -6/Factory | First assault squad dispatched 21588 | -6/Factory | Discovered new exit (range 8) 22111 | -6/Factory | Found Prototype Processor 22111 | -6/Factory | Identified Exp. Terrain Scan Processor 22182 | -6/Factory | Spotted B-75 Beast 22187 | -6/Factory | Destroyed B-75 Beast 22572 | -6/Factory | Reached level 21 22590 | -6/Factory | Entered Lower Caves 22691 | -6/Lower Caves | Learned Factory terminal intel 22868 | -6/Lower Caves | Found Prototype Device 22868 | -6/Lower Caves | Identified Heart of Steel 22886 | -6/Lower Caves | Encountered a Warlord checkpoint 23077 | -6/Lower Caves | Build established: Hacker-Gunner 23240 | -6/Lower Caves | Discovered new exit (range 12) 24701 | -6/Lower Caves | Entered another Lower Caves area 25091 | -6/Lower Caves | Build established: Hacker-Mutant 25110 | -6/Lower Caves | Attracted the attention of an 0b10 outpost 25177 | -6/Lower Caves | Destroyed 12 combat bots 25203 | -6/Lower Caves | Discovered new exit (range 15) 25579 | -6/Lower Caves | Attracted the attention of an 0b10 checkpoint 26072 | -6/Lower Caves | Build established: Hacker-Gunner 26164 | -6/Lower Caves | Discovered new exit (range 7) 27113 | -6/Lower Caves | Entered Data Miner 27113 | -6/Data Miner | Discovered new exit (range 6) 27135 | -6/Data Miner | Met Data Miner 27173 | -6/Data Miner | Learned location of Section 7 (-2) 27173 | -6/Data Miner | Acquired the access code to Warlord's prototype stash 27197 | -6/Data Miner | Received God Mode back door access code from Data Miner 27236 | -6/Data Miner | Entered Proximity Caves 27250 | -5/Proximity Caves | Reached level 22 27327 | -5/Proximity Caves | Escorted by Enhanced Grunt 27471 | -5/Proximity Caves | Heart of Steel transformed into Warbot 28135 | -5/Proximity Caves | Learned Factory security intel 28366 | -5/Proximity Caves | Received a Behemoth hack from an annoying Tinkerer 28509 | -5/Proximity Caves | Attracted the attention of an 0b10 checkpoint 28544 | -5/Proximity Caves | Discovered new exit (range 12) 29631 | -5/Proximity Caves | Entered Factory 29631 | -5/Factory | Accompanied by 2 allies (Warbot) 29633 | -5/Factory | Loaded intel: 20 terminal locations 29633 | -5/Factory | Reached level 23 29931 | -5/Factory | First assault squad dispatched 30249 | -5/Factory | Incoming assault squad redirected 30260 | -5/Factory | Discovered new exit (range 12) 30270 | -5/Factory | Identified exit to Upper Caves 30381 | -5/Factory | Fabricated Exp. Targeting Computer (x1) 30415 | -5/Factory | Upgraded with Utility slot (x1) 30418 | -5/Factory | Local fabrication network quarantined 30683 | -5/Factory | Build established: Machinist-Gunner 30695 | -5/Factory | Garrison activated, responded to threat 30894 | -5/Factory | Reached level 24 30895 | -5/Factory | Allies destroyed Warbot 31658 | -5/Factory | Upgraded with Weapon slot (x1) 32047 | -5/Factory | Incoming assault squad redirected 32551 | -5/Factory | High security lockdown imminent 32631 | -5/Factory | High security lockdown engaged 32789 | -5/Factory | Destroyed 18 combat bots 32856 | -5/Factory | Reached level 25 32888 | -5/Factory | Destroyed 14 combat bots 32892 | -5/Factory | Entered Upper Caves 33940 | -5/Upper Caves | Found Alien Artifact 33940 | -5/Upper Caves | Identified Core Expander 33940 | -5/Upper Caves | Installed Core Expander, added new Power slot 34201 | -5/Upper Caves | Attracted the attention of an 0b10 checkpoint 34276 | -5/Upper Caves | Discovered new exit (range 9) 34457 | -5/Upper Caves | Encountered a Warlord checkpoint 34649 | -5/Upper Caves | Entered another Upper Caves area 34649 | -5/Upper Caves | Accompanied by 3 allies 34666 | -5/Upper Caves | Discovered new exit (range 11) 34670 | -5/Upper Caves | Encountered a Warlord checkpoint 34802 | -5/Upper Caves | Attacked by a delusional Derelict stockpiling parts 34880 | -5/Upper Caves | Learned Factory security intel 36111 | -5/Upper Caves | Identified exit to Warlord 36596 | -5/Upper Caves | Build established: Machinist-Mutant 36830 | -5/Upper Caves | Entered Warlord 36830 | -5/Warlord | Accompanied by 3 allies 36876 | -5/Warlord | Discovered new exit (range 9) 37034 | -5/Warlord | System corruption cleaned by Quarantine Array 37264 | -5/Warlord | Found Prototype Device 37264 | -5/Warlord | Identified Minesniffer Drone Bay 37455 | -5/Warlord | Met Warlord 37470 | -5/Warlord | Opened Warlord's prototype stash 37477 | -5/Warlord | Found Prototype Reactor 37477 | -5/Warlord | Identified Vortex Chain Reactor 37480 | -5/Warlord | Warlord's base attacked by MAIN.C 37488 | -5/Warlord | Found Prototype Device 37488 | -5/Warlord | Identified Thermal Barrier 37511 | -5/Warlord | Found Exp. Targeting Computer 37687 | -5/Warlord | Found Prototype Energy Gun 37687 | -5/Warlord | Identified Vortex Rifle 37690 | -5/Warlord | Found Vortex Rifle 37696 | -5/Warlord | Found Prototype Piercing Weapon 37696 | -5/Warlord | Identified Vortex Lance 37763 | -5/Warlord | Build established: Generator-Mutant 37797 | -5/Warlord | Found Signal Generator 37830 | -5/Warlord | Warlord forces counterattacked 37893 | -5/Warlord | Spotted Striker 37909 | -5/Warlord | Spotted B-86 Titan 37910 | -5/Warlord | Spotted Executioner 37911 | -5/Warlord | Spotted Striker 37911 | -5/Warlord | Spotted Executioner 37924 | -5/Warlord | Destroyed Striker 37935 | -5/Warlord | Destroyed Executioner 37988 | -5/Warlord | Spotted Executioner 38014 | -5/Warlord | Found Prototype Processor 38015 | -5/Warlord | Identified Exp. Core Analyzer 38022 | -5/Warlord | Found Prototype Device 38026 | -5/Warlord | Identified Adv. Kinecellerator 38084 | -5/Warlord | Entered Proximity Caves 38084 | -4/Proximity Caves | Accompanied by 7 allies 38149 | -4/Proximity Caves | Attacked by a faux Warlord 38292 | -4/Proximity Caves | Reached level 26 38313 | -4/Proximity Caves | Destroyed 7 combat bots 38436 | -4/Proximity Caves | Upgraded with Utility slot (x1) 39071 | -4/Proximity Caves | Learned 4 Research zone layouts 39924 | -4/Proximity Caves | Discovered new exit (range 14) 40276 | -4/Proximity Caves | Entered Factory 40430 | -4/Factory | Destroyed 9 combat bots 41028 | -4/Factory | Build established: Generator-Gunner 41222 | -4/Factory | Fabricated M-13 Machinist (x1) 41632 | -4/Factory | Reached level 27 42026 | -4/Factory | First assault squad dispatched 42588 | -4/Factory | Incoming investigation squad redirected 42598 | -4/Factory | Identified exit to Upper Caves 42625 | -4/Factory | Incoming investigation squad redirected 42793 | -4/Factory | Repaired Med. Reactive Plating 43055 | -4/Factory | Incoming assault squad redirected 44053 | -4/Factory | Incoming assault squad redirected 44430 | -4/Factory | High security lockdown imminent 44510 | -4/Factory | High security lockdown engaged 44650 | -4/Factory | Entered Upper Caves 44652 | -4/Upper Caves | Reached level 28 44719 | -4/Upper Caves | Encountered a Warlord checkpoint 44973 | -4/Upper Caves | Upgraded with Utility slot (x1) 45042 | -4/Upper Caves | Learned Research non-interactive machine intel 45819 | -4/Upper Caves | Build established: Generator-Mutant 46064 | -4/Upper Caves | Discovered new exit (range 15) 46279 | -4/Upper Caves | Entered another Upper Caves area 46332 | -4/Upper Caves | Discovered new exit (range 6) 46519 | -4/Upper Caves | Attracted the attention of an 0b10 outpost 46826 | -4/Upper Caves | Build established: Generator-Gunner 47854 | -4/Upper Caves | Discovered new exit (range 17) 48154 | -4/Upper Caves | Found Alien Artifact 48155 | -4/Upper Caves | Identified Dimensional Node Initializer 48155 | -4/Upper Caves | Initialized slip node 48399 | -4/Upper Caves | Identified exit to Research 48436 | -4/Upper Caves | Build established: Generator-Mutant 48593 | -4/Upper Caves | Identified exit to Zhirov 48900 | -4/Upper Caves | Entered Zhirov 48900 | -4/Zhirov | Accompanied by 1 ally 48900 | -4/Zhirov | Discovered new exit (range 3) 48924 | -4/Zhirov | Met Zhirov 48994 | -4/Zhirov | Zhirov requested help retrieving the SGEMP Prototype 49031 | -4/Zhirov | Found Alien Artifact 49031 | -4/Zhirov | Identified Integrated Dissipator 49031 | -4/Zhirov | Installed Integrated Dissipator, increased core heat dissipation (+20) 49183 | -4/Zhirov | Found Alien Artifact 49196 | -4/Zhirov | Identified Transdimensional Reconstructor 49196 | -4/Zhirov | Warped through subspace 49323 | -4/Zhirov | Entered Proximity Caves 49323 | -3/Proximity Caves | Accompanied by 1 ally 49588 | -3/Proximity Caves | Attracted the attention of an 0b10 checkpoint 49659 | -3/Proximity Caves | Build established: Generator-Gunner 50123 | -3/Proximity Caves | Build established: Generator-Mutant 50232 | -3/Proximity Caves | Spotted B-86 Titan 50975 | -3/Proximity Caves | Destroyed B-86 Titan 51102 | -3/Proximity Caves | Discovered exit to Research (range 7) 51277 | -3/Proximity Caves | Build established: Generator-Gunner 51283 | -3/Proximity Caves | Entered Research 51284 | -3/Research | Identified exit to Research 51284 | -3/Research | Identified exit to Testing 51285 | -3/Research | Loaded intel: 48 non-interactive machine locations 51285 | -3/Research | Reached level 29 51575 | -3/Research | Incoming investigation squad redirected 51610 | -3/Research | Repaired Med. Reactive Plating 51668 | -3/Research | Repaired Smartbomb Launcher 51841 | -3/Research | Fabricated Enh. Nova Cannon (x1) 52268 | -3/Research | Discovered exit to Testing (range 12) 52575 | -3/Research | Destroyed 7 combat bots 52647 | -3/Research | Upgraded with Propulsion slot (x1) 52783 | -3/Research | First assault squad dispatched 52877 | -3/Research | Garrison activated, responded to threat 52905 | -3/Research | Reached level 30 53086 | -3/Research | Found Prototype Device 53086 | -3/Research | Identified Exp. Focal Shield 53301 | -3/Research | Incoming assault squad redirected 53465 | -3/Research | Found Prototype Device 53465 | -3/Research | Identified EM Disruption Field 53512 | -3/Research | Found Antimissile System 53533 | -3/Research | Build established: Generator-Mutant 53548 | -3/Research | Incoming assault squad redirected 53864 | -3/Research | Build established: Generator-Gunner 54193 | -3/Research | Build established: Generator-Mutant 54610 | -3/Research | Entered Testing 54610 | -3/Testing | Accompanied by 1 ally 54611 | -3/Testing | Maximum security lockdown engaged 54668 | -3/Testing | Spotted PY-BJ9MELHSKB 54685 | -3/Testing | Destroyed PY-BJ9MELHSKB 54721 | -3/Testing | Garrison activated, responded to threat 54793 | -3/Testing | Reached level 31 54806 | -3/Testing | Found Prototype Device 54806 | -3/Testing | Identified AEGIS Remote Shield 54814 | -3/Testing | Destroyed 31 combat bots 54839 | -3/Testing | Spotted Investigator 54840 | -3/Testing | Scanned by Researcher 54841 | -3/Testing | Core integrity fell below 50% 54874 | -3/Testing | Destroyed Investigator 54906 | -3/Testing | Destroyed 23 combat bots 55029 | -3/Testing | Spotted Executioner 55030 | -3/Testing | Core integrity fell below 20% 55061 | -3/Testing | Destroyed Executioner 55113 | -3/Testing | Garrison activated, responded to threat 55169 | -3/Testing | Destroyed 39 combat bots 55179 | -3/Testing | Spotted Striker 55183 | -3/Testing | Destroyed Striker 55184 | -3/Testing | Spotted Striker 55198 | -3/Testing | Spotted Executioner 55200 | -3/Testing | System corruption reached 10% 55205 | -3/Testing | Destroyed Striker 55224 | -3/Testing | Spotted Striker 55233 | -3/Testing | Destroyed Executioner 55237 | -3/Testing | Sterilization system engaged 55237 | -3/Testing | Non-combat units ordered to evacuate 55239 | -3/Testing | Destroyed Striker 55242 | -3/Testing | Reached level 32 55275 | -3/Testing | Destroyed 37 combat bots 55311 | -3/Testing | Found Prototype Launcher 55311 | -3/Testing | Identified Z-bomb Delivery System 55337 | -3/Testing | Combat units ordered to evacuate 55376 | -3/Testing | Spotted Striker 55377 | -3/Testing | Spotted Striker 55379 | -3/Testing | Crushed by falling debris 55383 | -3/Testing | Destroyed Striker 55394 | -3/Testing | Destroyed Striker 55445 | -3/Testing | Spotted Alpha 7 55450 | -3/Testing | Destroyed Alpha 7 55537 | -3/Testing | Ambient heat levels rising (+10) 55560 | -3/Testing | Found Portable AFG 55625 | -3/Testing | Found Prototype Protection 55625 | -3/Testing | Identified Hvy. Regenerative Plating 55628 | -3/Testing | Found Prototype Protection 55628 | -3/Testing | Identified Med. Regenerative Plating 55633 | -3/Testing | Found Prototype Protection 55633 | -3/Testing | Identified SHELL Armor 55643 | -3/Testing | Upgraded with Utility slot (x1) 55687 | -3/Testing | Ambient heat levels rising (+10) 55746 | -3/Testing | Found Prototype Energy Cannon 55746 | -3/Testing | Identified Hpw. Disruptor Cannon 55837 | -3/Testing | Ambient heat levels rising (+10) 55849 | -3/Testing | Found Prototype Device 55849 | -3/Testing | Identified Exp. Thermal Shield 55947 | -3/Testing | Stole the SGEMP Prototype 55987 | -3/Testing | Ambient heat levels rising (+10) 56097 | -3/Testing | Build established: Generator-Gunner 56137 | -3/Testing | Ambient heat levels rising (+10) 56191 | -3/Testing | Discovered exit to Research (range 17) 56254 | -3/Testing | Entered Research 56254 | -2/Research | Warlord forces began assault on 0b10 56346 | -2/Research | High security lockdown imminent 56364 | -2/Research | Research machine network offline 56426 | -2/Research | High security lockdown engaged 56462 | -2/Research | Borebot progress halted 56562 | -2/Research | Discovered new exit (range 16) 56590 | -2/Research | Destroyed 10 combat bots 56701 | -2/Research | Borebot progress halted 56736 | -2/Research | Reached level 33 56755 | -2/Research | Spotted Investigator 56761 | -2/Research | Destroyed Investigator 56791 | -2/Research | Destroyed 9 combat bots 56877 | -2/Research | Spotted Striker 56880 | -2/Research | Destroyed Striker 56881 | -2/Research | Spotted Striker 56905 | -2/Research | Destroyed Striker 57011 | -2/Research | Spotted Executioner 57011 | -2/Research | Spotted Striker 57012 | -2/Research | Spotted Striker 57034 | -2/Research | Destroyed Striker 57050 | -2/Research | Spotted Striker 57072 | -2/Research | Spotted Investigator 57072 | -2/Research | Met up with Warlord 57135 | -2/Research | Spotted Striker 57222 | -2/Research | Spotted Executioner 57223 | -2/Research | Spotted Executioner 57234 | -2/Research | Destroyed Executioner 57254 | -2/Research | Warlord invited to help at Command 57257 | -2/Research | Destroyed 9 combat bots 57302 | -2/Research | Spotted Striker 57303 | -2/Research | Destroyed Striker 57330 | -2/Research | Spotted Executioner 57333 | -2/Research | Spotted Executioner 57404 | -2/Research | Discovered new exit (range 12) 57440 | -2/Research | Spotted B-90 Cyclops 57451 | -2/Research | Spotted Striker 57453 | -2/Research | Reached level 34 57463 | -2/Research | Borebot progress halted 57485 | -2/Research | Spotted Striker 57488 | -2/Research | Spotted Striker 57490 | -2/Research | Spotted Striker 57491 | -2/Research | Spotted Executioner 57492 | -2/Research | Destroyed Executioner 57495 | -2/Research | Destroyed Striker 57507 | -2/Research | Destroyed Striker 57508 | -2/Research | Warlord destroyed during the assault 57529 | -2/Research | Spotted Striker 57532 | -2/Research | Spotted Striker 57538 | -2/Research | Destroyed Striker 57541 | -2/Research | Spotted Striker 57558 | -2/Research | Build established: Generator-Executioner 57569 | -2/Research | System corruption reached 10% 57604 | -2/Research | Destroyed 16 combat bots 57650 | -2/Research | Spotted Striker 57656 | -2/Research | Destroyed Striker 57759 | -2/Research | Spotted Executioner 57780 | -2/Research | Core integrity fell below 50% 57807 | -2/Research | Entered Access 57808 | -1/Access | Loaded intel: 127 machine locations 57808 | -1/Access | Loaded intel: 91 trap records 57808 | -1/Access | Identified exit to Surface 57808 | -1/Access | Discovered exit to Surface (range 91) 57808 | -1/Access | Identified exit to Command 57808 | -1/Access | Discovered exit to Command (range 115) 57808 | -1/Access | Core integrity fell below 50% 57809 | -1/Access | Delivered the SGEMP Prototype to Zhirov 57809 | -1/Access | Zhirov transferred Access data 57847 | -1/Access | Zhirov warped through subspace 58082 | -1/Access | First assault squad dispatched 58100 | -1/Access | Incoming assault squad redirected 58101 | -1/Access | Incoming assault squad redirected 58120 | -1/Access | Build established: Generator-Mutant 58193 | -1/Access | Reached level 35 58366 | -1/Access | Incoming assault squad redirected 58518 | -1/Access | Core integrity fell below 20% 58589 | -1/Access | Destroyed 12 combat bots 58613 | -1/Access | Incoming assault squad redirected 58700 | -1/Access | Incoming assault squad redirected 58919 | -1/Access | Entered Command 58921 | -1/Command | Reached level 36 59169 | -1/Command | First assault squad dispatched 59188 | -1/Command | Incoming assault squad redirected 59294 | -1/Command | Found Unknown Device 59294 | -1/Command | Identified Launcher Loader 59469 | -1/Command | Incoming assault squad redirected 59483 | -1/Command | Build established: Hacker-Mutant 59689 | -1/Command | Incoming assault squad redirected 60083 | -1/Command | Incoming assault squad redirected 60239 | -1/Command | System corruption reached 10% 60252 | -1/Command | Incoming assault squad redirected 60339 | -1/Command | Destroyed 14 combat bots 60472 | -1/Command | Spotted Combat Programmer 60478 | -1/Command | Incoming assault squad redirected 60481 | -1/Command | Spotted M Guard 60481 | -1/Command | Spotted Combat Programmer 60482 | -1/Command | Incoming assault squad redirected 60491 | -1/Command | Incoming assault squad redirected 60493 | -1/Command | Spotted M Guard 60502 | -1/Command | Destroyed Combat Programmer 60526 | -1/Command | Destroyed Combat Programmer 60538 | -1/Command | High security lockdown imminent 60562 | -1/Command | Reached level 37 60562 | -1/Command | Destroyed M Guard 60581 | -1/Command | 0b10 Conduit disabled 60583 | -1/Command | Destroyed 15 combat bots 60589 | -1/Command | Destroyed M Guard 60589 | -1/Command | All MAIN.C guards destroyed 60616 | -1/Command | Met MAIN.C 60618 | -1/Command | High security lockdown engaged 60631 | -1/Command | Destroyed MAIN.C Shell 60634 | -1/Command | MAIN.C activated Command garrisons 60638 | -1/Command | Zhirov used SGEMP to disable MAIN.C 61148 | -1/Command | Build established: Hacker-Gunner 61650 | -1/Command | Discovered exit to Surface (range 11) 61827 | -1/Command | Found Prototype Ballistic Gun 61827 | -1/Command | Identified Multirail 62362 | -1/Command | Build established: Hacker-Mutant 63950 | -1/Command | Found Adv. Force Booster 64203 | -1/Command | Found Prototype Device 64203 | -1/Command | Identified Femtoactuators 64205 | -1/Command | Found Prototype Device 64205 | -1/Command | Identified Exp. Weapon Cycler 64209 | -1/Command | Found Prototype Device 64209 | -1/Command | Identified Exp. Cloaking Device 64212 | -1/Command | Found Prototype Processor 64212 | -1/Command | Identified Exp. Melee Analysis Suite 64214 | -1/Command | Found Prototype Processor 64214 | -1/Command | Identified Exp. Target Analyzer 64219 | -1/Command | Found Vortex Chain Reactor 64490 | -1/Command | Build established: Generator-Skirmisher 65179 | -1/Command | Build established: Generator-Executioner 65645 | -1/Command | Discovered exit to Surface (range 8) 65778 | -1/Command | Phase Generator disabled 67455 | -1/Command | Build established: Generator-Mutant 67667 | -1/Command | Released all parts (19) 67692 | *** | Escaped! Last Messages --------------- 67667_ Released Z-bomb Delivery System. 67667_ Released Exp. Target Analyzer. 67667_ Released Vortex Chain Reactor. 67667_ Released Gamma Rifle. 67667_ Released Tesla Rifle. 67667_ Released Adv. Heavy Siege Treads. 67667_ Released Vortex Chain Reactor. 67667_ Released Biometal Heavy Treads. 67667_ Released Tesla Rifle. 67668_ Dropped Adv. Remote Datajack. 67669_ Dropped Vortex Rifle. 67669_ Dropped Com. HERF Cannon. 67670_ Dropped Tesla Rifle. 67670_ Upgraded: Terrain Scan Density (+100) [Achievement: Tester] [Achievement: Torch] [Achievement: Rambo] [Achievement: Victory By Combat] [Achievement: Death Machine] [Achievement: Overachiever] Map ----- +----------------------------------------------------+ | ???# #???????????##?# ] # ######### | | ???# #??????????????# !!## "" | | #### ################ !## T " | | + ## " | | # ################ ## ######### """" | | # #?????????# # ""### ##???????# " "" | | # #?????????# ! # ""#?# #????????# "" | | # #?????????# + ""#?# #????????######## | | # #?????????# # T#?# #???????????????? | | #+## #?????????## ## ""#?# #???????????????? | | # #??????????# ##!! ""############??????????? | | # #??????????# ##!! ""## #??????????? | | # #??????????# ## ## = #??????????? | | # #?????????## ## ## #??????????? | | # #####+##### ####+#### #??????????? | | / + "" #??????????? | | # #### """" #??????????? | | ##### [* #??# """" #??????????? | | #???# *![ #??# "" #??#######?? | | #???# [!!!=####+#####+####### # #?? | | #???# """" [[!] ##?? | | #???# """" ]|[= #?? | | ######## """" [####### ####### ##?? | | # """" ####### #??#### ##??? | | # ## ## #??# ]] =#??? | | # ## @ ## #??#]][[[ =#??? | | # ## #??#! !* ==#??? | | =!! !# """" ## #??#!!* *==#??? | | =! # """" ####### #??#########??? | | !! # """" ####### #?????????????? | | #####/## """" === #?????????????? | | ?# == #?????????????? | | ## ==[ #?????????????? | | # #?????????????? | | # """" ^^^^^#?????????????? | | # """ #?????????????? | | # """" #?????????????? | | # =""" ###+####???????????? | | # [=* ! # #???????????? | | + ^^ ^ ! *[[[ + #???????????? | | #^ ^^ [ !% [! # #???????????? | | # ########## ###### [### ! ! #???????????? | | #######????######+########! #?########???????????? | | ???????????# ##"#????????????????????? | | ???????????# ## #????????????????????? | | ???????????#//! ####????????????????????? | | ???????????#/!! #???????????????????????? | | ???????????#/! #???????????????????????? | | ???????????# #???????????????????????? | | ???????????###############???????????????????????? | +----------------------------------------------------+ Best States ------------- Heat Dissipation 177 Energy Generation 110 Energy Capacity 1500 Matter Stores 600 Matter Capacity 700 Sight Range 23 Robot Scan Range 12 Terrain Scan Density 110 Cloak Strength 4 Base Temperature (-) 200 EM Shielding 4 Armor Coverage 1600 Resistance: KI 30 Resistance: TH 50 Resistance: EX 50 Resistance: EM 90 Point Defense Rating 240 Weapon Cycling 20 Evasion (%) 50 Targeting Accuracy 16 Target Analysis 12 Core Analysis 15 Armor Integrity Analysis 66 Recoil Reduction 5 Matter Filtering 50 Particle Charging 25 Offensive Hacking 45 Defensive Hacking 39 Item Schematics ----------------- Exp. Sensor Array | -8/Materials | Scanalyzed Adv. EMP Blaster | -7/Factory | Hacked Plasma Cannon | -7/Factory | Hacked Hvy. Particle Cannon | -7/Factory | Hacked Imp. Cryofiber Web | -7/Factory | Hacked Cld. Ion Engine | -7/Factory | Scanalyzed Neutron Cannon | -7/Factory | Hacked Imp. Proton Missile Launcher | -7/Factory | Hacked Combat Drone Bay | -6/Data Miner | Free Lgt. Regenerative Plating | -6/Data Miner | Free Triangulator | -6/Data Miner | Free Exp. Targeting Computer | -6/Data Miner | Free Tactical Coordination Suite | -6/Data Miner | Free Cloaking Device | -6/Data Miner | Free Plasma Sword | -6/Data Miner | Free Enh. Nova Cannon | -4/Factory | Hacked Assault Drone Bay | -4/Zhirov | Free Exp. Heat Sink | -4/Zhirov | Free Exp. Optical Array | -4/Zhirov | Free Imp. Arc Thrower | -4/Zhirov | Free Robot Schematics ------------------ M-13 Machinist | -8/Materials | Hacked S-27 Virus | -6/Data Miner | Free G-50 Soldier | -6/Data Miner | Free X-72 Disruptor | -6/Data Miner | Free H-66 Slayer | -6/Data Miner | Free P-70 Sage | -6/Data Miner | Free I-36 Angel | -6/Data Miner | Free Fabricated ------------ Plasma Cannon | x2 | -7/Factory Plasma Cannon | x2 | -7/Factory Imp. Cryofiber Web | x1 | -7/Factory Cld. Ion Engine | x1 | -7/Factory Neutron Cannon | x2 | -7/Factory Neutron Cannon | x2 | -7/Factory Neutron Cannon | x2 | -7/Factory Imp. Proton Missile Launcher | x1 | -7/Factory Imp. Proton Missile Launcher | x1 | -6/Factory Exp. Targeting Computer | x1 | -5/Factory M-13 Machinist | x1 | -4/Factory Enh. Nova Cannon | x1 | -3/Research Alien Tech Used ----------------- Core Expander Dimensional Node Initializer Integrated Dissipator Transdimensional Reconstructor Achievements -------------- Armchair Analyst Charge!!! Death Machine Equal Opportunity Bot Overachiever Rambo Reappropriation Sorry Old Pal Subspace Traveler Tester The Science Guy Torch Treasure Hunter Victory By Combat What Is This Thing? Challenges ------------ None RPGLIKE | -11 -10 -10 -10 -9 -8 -7 -7 -7 -7 -7 -6 -6 -6 -6 -6 -5 -5 -5 -5 -5 -4 -4 -4 -4 -4 -3 -3 -3 -2 -1 -1 --------- Run | Scr Mat Min Exi Min Mat Fac Was Fac Low Zio Pro Fac Low Low Dat Pro Fac Upp Upp War Pro Fac Upp Upp Zhi Pro Res Tes Res Acc Com Levels Raised 36 | . 4 . . 2 6 1 1 2 . . 1 3 . . . 1 3 . . . 1 1 1 . . . 2 2 2 1 2 XP Earned 57887 | 3000 6015 921 243 1950 9034 2694 173 3490 118 152 2013 3231 82 778 105 1763 3279 320 217 351 916 2592 177 330 73 955 2040 2721 3175 2032 2947 XP Spent 56970 | 2970 5800 . . 1100 9210 3150 . 4480 225 . 1500 2850 1540 . . . 4000 . . . 2600 720 2900 . . 450 1400 4200 1575 2700 3600 Upgrades 103 | 16 9 . . 1 12 4 . 8 3 . 3 5 14 . . . 2 . . . 1 2 1 . . 3 1 2 6 3 7 Power Slot 2 | . 1 . . . . . . 1 . . . . . . . . . . . . . . . . . . . . . . . Propulsion Slot 4 | 1 1 . . . 1 . . . . . . . . . . . . . . . . . . . . . 1 . . . . Utility Slot 10 | 1 2 . . . 2 . . 1 . . . . . . . . 1 . . . 1 . 1 . . . . 1 . . . Weapon Slot 5 | 1 1 . . 1 1 . . . . . . . . . . . 1 . . . . . . . . . . . . . . Core Integrity 16 | 2 . . . . . . . . . . . . 14 . . . . . . . . . . . . . . . . . . Heat Dissipation 22 | 8 . . . . 1 . . 6 . . . . . . . . . . . . . 2 . . . . . . . . 5 Energy Generation 1 | . 1 . . . . . . . . . . . . . . . . . . . . . . . . . . . . . . Matter Storage 6 | . . . . . . . . . . . . . . . . . . . . . . . . . . . . . 6 . . Mass Support 1 | 1 . . . . . . . . . . . . . . . . . . . . . . . . . . . . . . . Inventory Capacity 4 | 1 . . . . . 2 . . . . . . . . . . . . . . . . . . . . . 1 . . . Sight Range 1 | 1 . . . . . . . . . . . . . . . . . . . . . . . . . . . . . . . Sensor Range 6 | . . . . . . . . . 3 . . . . . . . . . . . . . . . . 3 . . . . . Terrain Scan Density 1 | . . . . . . . . . . . . . . . . . . . . . . . . . . . . . . . 1 Ranged Accuracy 8 | . 3 . . . 2 2 . . . . . 1 . . . . . . . . . . . . . . . . . . . Hack Attack % 4 | . . . . . 3 . . . . . . . . . . . . . . . . . . . . . . . . 1 . Hack Defense % 5 | . . . . . 2 . . . . . . . . . . . . . . . . . . . . . . . . 2 1 KI Resistance % 1 | . . . . . . . . . . . . 1 . . . . . . . . . . . . . . . . . . . TH Resistance % 2 | . . . . . . . . . . . . 2 . . . . . . . . . . . . . . . . . . . TH Damage % 4 | . . . . . . . . . . . 3 1 . . . . . . . . . . . . . . . . . . . Protomatter Created 9111 | . 192 . . 4 905 89 . 618 . . 335 1108 . 330 . 172 733 37 40 26 130 549 36 36 61 99 404 975 443 448 1341 Integrity Restored 15028 | . 489 . . 12 987 55 184 777 . . 1263 930 . 348 . 457 1226 15 120 757 594 950 . 96 183 297 1022 405 2247 423 1191 Core 8977 | . 403 . . 12 835 48 153 394 . . 600 519 . 202 . 170 803 15 120 730 246 545 . 96 183 297 512 312 1360 108 314 Parts 6051 | . 86 . . . 152 7 31 383 . . 663 411 . 146 . 287 423 . . 27 348 405 . . . . 510 93 887 315 877 Protomatter Decayed 10885 | . 16 . . 6 442 70 3 514 52 . 125 585 . 241 . 99 470 47 48 936 263 100 36 . . . . 332 5349 302 849 Game ------ Seed BombNuclearWings Manual? 0 Play Time 14:07:06 Cumulative 81.3 hours Start 2021.03.05 @ 13:16:06 End 2021.03.07 @ 19:11:18 Sessions 27 Manual Loads 0 Difficulty Rogue Special Mode Winter2019/RPGLIKE Game No. 21 Rogue 21 Adventurer 0 Explorer 0 Win Type 0 Total 4 Types 3/0/0/0/0/0/0/0/1 Lore% 37 Gallery% 51 Achievement% 53 Wizard Run 0 Options --------- ASCII 0 Keyboard 0 Movement Mouse Keybinds 0 Fullscreen 1 Font 18/SmallcapsGlow Map View 112x50 Tactical HUD 1 Map Filters NONE Filters NONE Steam 1 RUN: 4567e5ac-384a-4b2e-9aeb-c927a02d17e0